{"text_format":"1","workbook":"xlsx","n_sheets":49,"sheets":["modProv","Инструкция","Лог обновления","Титульный","Территории","Дифференциация","Форма 1.0.1","Форма 2.10","Сведения об изменении","Форма 1.0.2","Комментарии","Проверка","modReestr","AllSheetsInThisWorkbook","TEHSHEET","modCheckCyan","modInfo","et_union_hor","et_union_vert","modList00","modList01","modList02","modList03","modList04","modList07","modList09","modHTTP","modfrmRegion","MR_LIST","REESTR_VT","REESTR_VED","modfrmReestrObj","DataOrg","modfrmReestr","modUpdTemplMain","REESTR_ORG","modClassifierValidate","modHyp","modfrmDateChoose","modComm","modThisWorkbook","REESTR_MO","REESTR_MO_FILTER","modfrmReestrMR","modServiceModule","modfrmCheckUpdates","REESTR_DS","REESTR_CHS","REESTR_LINK"],"not_rendered":{"charts":0,"images":22,"macros":1,"external_links":0,"defined_names":173,"comments":3,"pivot_tables":0},"unopened":[],"bounds":{"document_bytes":16777216,"sheet_cells":100000,"rows_first":2000,"rows_last":500,"rows_between":2000,"halvings":0,"cell_chars":16384,"cell_head_chars":4096},"cells_cut":0,"cells_raw":0,"read":"whole","date_system":"1900"}

{"sheet":"modProv","index":0,"n_rows":0,"n_cols":0,"rows_kept":0,"cut":false,"hidden":true,"merged":[]}

{"sheet":"Инструкция","index":1,"n_rows":83,"n_cols":27,"rows_kept":83,"cut":false,"hidden":false,"merged":[[34,4,38,23],[22,15,22,22],[21,5,21,12],[1,1,1,6],[2,1,2,2],[4,1,4,24],[6,4,18,23],[20,5,20,12],[20,15,20,23],[21,15,21,23],[39,4,39,23],[40,4,44,23],[45,4,56,23],[80,5,80,18],[58,4,58,6],[58,7,58,23],[59,4,59,6],[71,5,71,23],[57,4,57,20],[70,4,70,19],[82,5,82,23],[60,7,60,23],[78,4,78,23],[72,5,72,23],[73,5,73,23],[74,4,74,23],[75,4,75,23],[76,4,76,23],[77,4,77,23],[69,4,69,19]]}
[null,null,null,null,null,null,null,null,null,null,null,null,null,null,null,null,null,null,null,null,null,null,null,null,null,null," (требуется обновление)"]
[null,{"$f":"\"Код отчёта: \" & GetCode()","v":"Код отчёта: FAS.JKH.OPEN.INFO.QUARTER.HVS"}]
[null,{"$f":"\"Версия \" & GetVersion()","v":"Версия 1.0.1"}]
[]
[null,{"$f":"Титульный!E5","v":"Информация о наличии (отсутствии) технической возможности подключения к централизованной системе холодного водоснабжения, а также о регистрации и ходе реализации заявок о подключении к централизованной системе холодного водоснабжения"}]
[]
[null,null,null,null,"• На рабочем месте должен быть установлен MS Office 2007 SP3, 2010, 2013, 2016 с полной версией MS Excel\n\n• Макросы во время работы должны быть включены (!)\n\n• Для корректной работы отчёта требуется выбрать низкий уровень безопасности\n(В меню MS Excel 2007/2010/2013/2016: Параметры Excel | Центр управления безопасностью | Параметры центра управления безопасностью | Параметры макросов | Включить все макросы | ОК)\n\n• Если Вы работаете в табличном процессоре MS Excel 2007 и выше, то можете использовать для работы формат XLSB (Двоичная книга Excel). При работе в формате XLSB заметно быстрее происходит сохранение файла, а также уменьшается размер по сравнению с форматами XLS и XLSM\n\n• Не рекомендуется снимать защиту с листов и каким-либо образом модифицировать защищаемые формулы и расчётные поля, в противном случае, отчёт будет отклонён системой\n\n• При сохранении не следует выбирать формат XLSX (Книга Excel), так как в указанном формате макросы, необходимые для работы отчёта, безвозвратно удаляются"]
[]
[]
[]
[]
[]
[]
[]
[]
[]
[]
[]
[]
[]
[null,null,null,null,"A"," - не обязательные для заполнения",null,null,null,null,null,null,null,null,"A"," - с формулами и константами"]
[null,null,null,null,"A"," - обязательные для заполнения",null,null,null,null,null,null,null,null,"A"," - с выбором значений до двойному клику"]
[]
[]
[]
[]
[]
[]
[]
[]
[]
[]
[]
[]
[null,null,null,null,"Если в предложенном Вам списке необходимая организация, МР/МО отсутствуют, обновите реестры с помощью кнопок\n\nВ результате синхронизации с базой данных список организаций (МР/МО) будет заменён актуальным (механизм синхронизации требует подключения к сети Интернет и основан на использовании протокола HTTPS (TCP порт 443))\n\nЕсли после обновления Вам не удалось найти необходимую организацию в списке, обратитесь к ответственному за поддержание реестра Вашего региона."]
[]
[]
[]
[]
[]
[]
[]
[]
[]
[]
[null,null,null,null,"• При сохранении шаблона осуществляется проверка корректности данных, в том числе на наличие значений в ячейках, обязательных для заполнения\n\n• Если какая-то ячейка не удовлетворяет условию проверки, на лист «Проверка» добавляется гиперссылка на данную ячейку и указывается причина ошибки\n\n• В колонке «Статус» для каждого сообщения возможны 2 значения: ошибка и предупреждение\n\n• При наличии сообщений со статусом «Ошибка» шаблон будет отклонён системой и не будет загружен в хранилище данных, сообщения со статусом «Предупреждение» носят информационный характер, и такой шаблон будет принят системой"]
[]
[]
[]
[]
[]
[]
[]
[]
[]
[]
[]
[null,null,null,null,"Обратиться за помощью в службу технической поддержки"]
[]
[]
[]
[]
[]
[]
[]
[]
[]
[]
[]
[null,null,null,null,"Инструкция по загрузке сопроводительных материалов"]
[null,null,null,null,"Инструкция по работе с отчетной формой"]
[]
[]
[]
[]
[]
[]
[]
[null,null,null,null,"При наличии подключения к Интернет, можно автоматически проверять наличие доступных обновлений. Выберите способ оповещения о наличии обновлений для отчёта:"]
[]
[null,null,null,null,null,"проверять доступные обновления (рекомендуется)",null,null,null,null,null,null,null,null,null,null,null,null,null,null,null,null,null,null,null,null,"y"]
[]
[null,null,null,null,null,"никогда не проверять наличие обновлений (не рекомендуется)"]

{"sheet":"Лог обновления","index":2,"n_rows":106,"n_cols":3,"rows_kept":106,"cut":false,"hidden":true,"merged":[]}
["Дата/Время","Сообщение","Статус"]
["2018-10-18T09:47:06","Проверка доступных обновлений...","Информация"]
["2018-10-18T09:47:29","Проверка доступных обновлений...","Информация"]
["2018-10-18T09:47:30","Нет доступных обновлений для отчёта с кодом FAS.JKH.OPEN.INFO.QUARTER.HVS!","Информация"]
["2018-10-18T09:48:02","Проверка доступных обновлений...","Информация"]
["2018-10-18T09:49:45","Проверка доступных обновлений...","Информация"]
["2018-12-20T14:48:02","Проверка доступных обновлений...","Информация"]
["2018-12-20T14:48:04","Доступно обновление до версии 1.0.1","Информация"]
["2018-12-20T14:48:04","Описание изменений: Версия 1.0.1\n1. Исправление ошибки с удалением видов деятельности","Информация"]
["2018-12-20T14:48:04","Размер файла обновления: 323072 байт","Информация"]
["2018-12-20T14:48:07","Обновление отменено пользователем","Предупреждение"]
["2018-12-27T16:54:07","Проверка доступных обновлений...","Информация"]
["2018-12-27T16:54:09","Доступно обновление до версии 1.0.1","Информация"]
["2018-12-27T16:54:09","Описание изменений: Версия 1.0.1\n1. Исправление ошибки с удалением видов деятельности","Информация"]
["2018-12-27T16:54:09","Размер файла обновления: 323072 байт","Информация"]
["2018-12-27T16:54:14","Обновление отменено пользователем","Предупреждение"]
["2018-12-27T16:56:07","Проверка доступных обновлений...","Информация"]
["2018-12-27T16:56:08","Доступно обновление до версии 1.0.1","Информация"]
["2018-12-27T16:56:08","Описание изменений: Версия 1.0.1\n1. Исправление ошибки с удалением видов деятельности","Информация"]
["2018-12-27T16:56:08","Размер файла обновления: 323072 байт","Информация"]
["2018-12-27T16:56:10","Подготовка к обновлению...","Информация"]
["2018-12-27T16:56:20","Создание резервной копии отменено, обновление прервано","Предупреждение"]
["2018-12-27T16:57:04","Проверка доступных обновлений...","Информация"]
["2018-12-27T16:57:04","Доступно обновление до версии 1.0.1","Информация"]
["2018-12-27T16:57:04","Описание изменений: Версия 1.0.1\n1. Исправление ошибки с удалением видов деятельности","Информация"]
["2018-12-27T16:57:04","Размер файла обновления: 323072 байт","Информация"]
["2018-12-27T16:57:07","Подготовка к обновлению...","Информация"]
["2018-12-27T16:57:08","Создание резервной копии отменено, обновление прервано","Предупреждение"]
["2018-12-27T16:57:13","Проверка доступных обновлений...","Информация"]
["2018-12-27T16:57:13","Доступно обновление до версии 1.0.1","Информация"]
["2018-12-27T16:57:13","Описание изменений: Версия 1.0.1\n1. Исправление ошибки с удалением видов деятельности","Информация"]
["2018-12-27T16:57:13","Размер файла обновления: 323072 байт","Информация"]
["2018-12-27T16:57:20","Обновление отменено пользователем","Предупреждение"]
["2018-12-28T07:51:38","Проверка доступных обновлений...","Информация"]
["2018-12-28T07:51:40","Доступно обновление до версии 1.0.1","Информация"]
["2018-12-28T07:51:40","Описание изменений: Версия 1.0.1\n1. Исправление ошибки с удалением видов деятельности","Информация"]
["2018-12-28T07:51:40","Размер файла обновления: 323072 байт","Информация"]
["2018-12-28T07:51:50","Обновление отменено пользователем","Предупреждение"]
["2018-12-28T07:56:30","Проверка доступных обновлений...","Информация"]
["2018-12-28T07:56:31","Доступно обновление до версии 1.0.1","Информация"]
["2018-12-28T07:56:31","Описание изменений: Версия 1.0.1\n1. Исправление ошибки с удалением видов деятельности","Информация"]
["2018-12-28T07:56:31","Размер файла обновления: 323072 байт","Информация"]
["2018-12-28T07:56:41","Подготовка к обновлению...","Информация"]
["2018-12-28T07:56:56","Создание резервной копии отменено, обновление прервано","Предупреждение"]
["2018-12-28T08:11:53","Проверка доступных обновлений...","Информация"]
["2018-12-28T08:11:53","Доступно обновление до версии 1.0.1","Информация"]
["2018-12-28T08:11:53","Описание изменений: Версия 1.0.1\n1. Исправление ошибки с удалением видов деятельности","Информация"]
["2018-12-28T08:11:53","Размер файла обновления: 323072 байт","Информация"]
["2018-12-28T08:11:55","Подготовка к обновлению...","Информация"]
["2018-12-28T08:11:59","Сохранение файла резервной копии: C:\\Users\\danilova\\Desktop\\FAS.JKH.OPEN.INFO.QUARTER.HVS.BKP..xlsm","Информация"]
["2018-12-28T08:12:00","Резервная копия создана: C:\\Users\\danilova\\Desktop\\FAS.JKH.OPEN.INFO.QUARTER.HVS.BKP..xlsm","Информация"]
["2018-12-28T08:12:00","Создание книги для установки обновлений...","Информация"]
["2018-12-28T08:38:17","Проверка доступных обновлений...","Информация"]
["2018-12-28T08:38:18","Доступно обновление до версии 1.0.1","Информация"]
["2018-12-28T08:38:18","Описание изменений: Версия 1.0.1\n1. Исправление ошибки с удалением видов деятельности","Информация"]
["2018-12-28T08:38:18","Размер файла обновления: 323072 байт","Информация"]
["2018-12-28T08:38:22","Подготовка к обновлению...","Информация"]
["2018-12-28T08:38:43","Сохранение файла резервной копии: C:\\Users\\danilova\\Desktop\\UPDATE.FAS.JKH.OPEN.INFO.QUARTER.HVS.TO.1.0.1.59.xls.BKP..xlsm","Информация"]
["2018-12-28T08:38:43","Резервная копия создана: C:\\Users\\danilova\\Desktop\\UPDATE.FAS.JKH.OPEN.INFO.QUARTER.HVS.TO.1.0.1.59.xls.BKP..xlsm","Информация"]
["2018-12-28T08:38:43","Создание книги для установки обновлений...","Информация"]
["2018-12-28T08:42:55","Проверка доступных обновлений...","Информация"]
["2018-12-28T08:42:56","Доступно обновление до версии 1.0.1","Информация"]
["2018-12-28T08:42:56","Описание изменений: Версия 1.0.1\n1. Исправление ошибки с удалением видов деятельности","Информация"]
["2018-12-28T08:42:56","Размер файла обновления: 323072 байт","Информация"]
["2018-12-28T08:43:00","Подготовка к обновлению...","Информация"]
["2018-12-28T08:44:12","Сохранение файла резервной копии: C:\\Users\\Гусев\\FAS.JKH.OPEN.INFO.QUARTER.HVS.BKP..xlsm","Информация"]
["2018-12-28T08:44:13","Резервная копия создана: C:\\Users\\Гусев\\FAS.JKH.OPEN.INFO.QUARTER.HVS.BKP..xlsm","Информация"]
["2018-12-28T08:44:13","Создание книги для установки обновлений...","Информация"]
["2018-12-28T08:44:38","Проверка доступных обновлений...","Информация"]
["2018-12-28T08:44:39","Доступно обновление до версии 1.0.1","Информация"]
["2018-12-28T08:44:39","Описание изменений: Версия 1.0.1\n1. Исправление ошибки с удалением видов деятельности","Информация"]
["2018-12-28T08:44:39","Размер файла обновления: 323072 байт","Информация"]
["2018-12-28T08:44:41","Подготовка к обновлению...","Информация"]
["2018-12-28T08:44:50","Сохранение файла резервной копии: C:\\Users\\danilova\\Desktop\\UPDATE.FAS.JKH.OPEN.INFO.QUARTER.HVS.TO.1.0.1.26.xls.BKP..xlsm","Информация"]
["2018-12-28T08:44:51","Резервная копия создана: C:\\Users\\danilova\\Desktop\\UPDATE.FAS.JKH.OPEN.INFO.QUARTER.HVS.TO.1.0.1.26.xls.BKP..xlsm","Информация"]
["2018-12-28T08:44:51","Создание книги для установки обновлений...","Информация"]
["2018-12-28T08:44:52","Файл обновления загружен: C:\\Users\\danilova\\Desktop\\UPDATE.FAS.JKH.OPEN.INFO.QUARTER.HVS.TO.1.0.1.13.xls","Информация"]
["2018-12-28T08:44:55","Обновление завершилось удачно! Шаблон FAS.JKH.OPEN.INFO.QUARTER.HVS.xlsm сохранен под именем 'FAS.JKH.OPEN.INFO.QUARTER.HVS(v1.0.1).xlsm'","Информация"]
["2018-12-28T08:45:35","Проверка доступных обновлений...","Информация"]
["2018-12-28T08:45:37","Нет доступных обновлений для отчёта с кодом FAS.JKH.OPEN.INFO.QUARTER.HVS!","Информация"]
["2018-12-28T09:12:11","Проверка доступных обновлений...","Информация"]
["2018-12-28T09:12:12","Нет доступных обновлений для отчёта с кодом FAS.JKH.OPEN.INFO.QUARTER.HVS!","Информация"]
["2018-12-28T09:32:22","Проверка доступных обновлений...","Информация"]
["2018-12-28T09:32:23","Нет доступных обновлений для отчёта с кодом FAS.JKH.OPEN.INFO.QUARTER.HVS!","Информация"]
["2018-12-28T09:33:22","Проверка доступных обновлений...","Информация"]
["2018-12-28T09:33:23","Нет доступных обновлений для отчёта с кодом FAS.JKH.OPEN.INFO.QUARTER.HVS!","Информация"]
["2018-12-28T09:36:29","Проверка доступных обновлений...","Информация"]
["2018-12-28T09:36:30","Нет доступных обновлений для отчёта с кодом FAS.JKH.OPEN.INFO.QUARTER.HVS!","Информация"]
["2019-01-09T07:59:08","Проверка доступных обновлений...","Информация"]
["2019-01-09T07:59:10","Нет доступных обновлений для отчёта с кодом FAS.JKH.OPEN.INFO.QUARTER.HVS!","Информация"]
["2019-01-09T08:08:04","Проверка доступных обновлений...","Информация"]
["2019-01-09T08:08:05","Нет доступных обновлений для отчёта с кодом FAS.JKH.OPEN.INFO.QUARTER.HVS!","Информация"]
["2019-01-09T08:12:32","Проверка доступных обновлений...","Информация"]
["2019-01-09T08:12:34","Нет доступных обновлений для отчёта с кодом FAS.JKH.OPEN.INFO.QUARTER.HVS!","Информация"]
["2019-01-09T08:12:53","Проверка доступных обновлений...","Информация"]
["2019-01-09T08:12:55","Нет доступных обновлений для отчёта с кодом FAS.JKH.OPEN.INFO.QUARTER.HVS!","Информация"]
["2019-04-01T11:10:07","Проверка доступных обновлений...","Информация"]
["2019-04-01T11:10:08","Нет доступных обновлений для отчёта с кодом FAS.JKH.OPEN.INFO.QUARTER.HVS!","Информация"]
["2019-04-01T11:12:14","Проверка доступных обновлений...","Информация"]
["2019-04-01T11:12:15","Нет доступных обновлений для отчёта с кодом FAS.JKH.OPEN.INFO.QUARTER.HVS!","Информация"]
["2019-04-01T11:14:29","Проверка доступных обновлений...","Информация"]
["2019-04-01T11:14:30","Нет доступных обновлений для отчёта с кодом FAS.JKH.OPEN.INFO.QUARTER.HVS!","Информация"]
["2019-04-01T11:15:43","Проверка доступных обновлений...","Информация"]
["2019-04-01T11:15:44","Нет доступных обновлений для отчёта с кодом FAS.JKH.OPEN.INFO.QUARTER.HVS!","Информация"]
["2019-04-01T11:26:10","Проверка доступных обновлений...","Информация"]
["2019-04-01T11:26:11","Нет доступных обновлений для отчёта с кодом FAS.JKH.OPEN.INFO.QUARTER.HVS!","Информация"]

{"sheet":"Титульный","index":3,"n_rows":39,"n_cols":6,"rows_kept":39,"cut":false,"hidden":false,"merged":[[4,4,4,5]]}
[null,null,null,null,null,28932690]
[]
[]
[null,null,null,null,null,{"$f":"version","v":"Версия 1.0.1"}]
[null,null,null,null,"Информация о наличии (отсутствии) технической возможности подключения к централизованной системе холодного водоснабжения, а также о регистрации и ходе реализации заявок о подключении к централизованной системе холодного водоснабжения"]
[]
[null,null,null,null,"Субъект РФ","Республика Татарстан"]
[]
[null,null,null,null,"Публикация2","На сайте регулирующего органа"]
[]
[null,null,null,null,"Отсутствует Интернет в границах территории МО, где организация осуществляет регулируемые виды деятельности","нет"]
[]
[null,null,null,null,"Тип отчета","первичное раскрытие информации"]
[null,null,null,null,"Дата внесения изменений в информацию, подлежащую раскрытию","01.04.2019"]
[]
[null,null,null,null,"Применяется дифференциация тарифа по централизованным системам теплоснабжения?"]
[null,null,null,null,"Информация по скольким централизованным системам теплоснабжения будет заполнена в шаблоне?"]
[]
[null,null,null,null,null,"Отчетный период"]
[null,null,2019,null,"Год",2019]
[null,null,"I квартал",null,"Квартал","I квартал"]
[]
[null,null,null,null,"Является ли данное юридическое лицо подразделением (филиалом) другой организации","нет"]
[]
[]
[null,null,null,null,"Наименование организации","АО \"Чистополь-Водоканал\""]
[null,null,null,null,"Наименование филиала"]
[null,null,null,null,"ИНН","1652022810"]
[null,null,null,null,"КПП","165201001"]
[null,null,null,null,"Вид деятельности"]
[]
[null,null,null,null,"Почтовый адрес регулируемой организации","РТ, г. Чистополь, ул. К. Либкнехта, 1Д"]
[null,null,null,null,"Фамилия, имя, отчество руководителя","Ахметзянов Талгат Анасович"]
[]
[null,null,null,null,null,"Ответственный за составление формы"]
[null,null,null,null,"Фамилия, имя, отчество","Плотников Дмитрий Алексеевич"]
[null,null,null,null,"Должность","Начальник ПТО"]
[null,null,null,null,"(код) номер телефона","(84342)5-04-29"]
[null,null,null,null,"e-mail","Gupvoda@mail.ru"]

{"sheet":"Территории","index":4,"n_rows":17,"n_cols":18,"rows_kept":17,"cut":false,"hidden":false,"merged":[[8,5,8,6],[8,8,8,9],[9,5,9,6],[9,8,9,9],[3,3,3,7],[5,3,5,4],[5,5,5,6],[7,3,7,4],[7,5,7,7],[7,8,7,11],[12,7,14,7],[11,2,15,2],[11,3,15,3],[11,4,15,4],[12,5,14,5],[12,6,14,6]]}
[null,null,null,null,null,null,null,null,null,null,"МО","ОКТМО","МР"]
[]
[]
[null,null,null,"Перечень муниципальных районов и муниципальных образований (территорий действия тарифа)"]
[]
[null,null,null,null,null,"да"]
[]
[null,null,null,"Территория действия тарифа",null,"Муниципальный район",null,null,"Муниципальное образование"]
[null,null,null,"№ п/п","Наименование","№ п/п",null,"Наименование","№ п/п",null,"Наименование","ОКТМО"]
[null,null,null,"1","2","3",null,"4","5",null,"6","7"]
[null,null,null,0,null,"",null,null,"",null,null,null,"размерженный МР",null,null,"флаг используемости территории на листе Перечень тарифов","копия территорий","МР (ОКТМО)"]
[null,"auto",null,1,"Чистопольский муниципальный район, Город Чистополь (92659101);","",0,null,"","0",null,null,{"$f":"mergeValue(H12)","v":0},null,null,{"$f":"IF(ISERROR(MATCH(MID(Q12,1,250),MID(note_ter,1,250),0)),\"n\",\"y\")","v":"n"},"Чистопольский муниципальный район, Город Чистополь (92659101);",{"$f":"K12&\"(\"&L12&\")\"","v":"()"}]
[null,"auto",null,null,null,"",1,"Чистопольский муниципальный район","","0",null,null,{"$f":"mergeValue(H13)","v":"Чистопольский муниципальный район"},null,null,null,null,{"$f":"K13&\"(\"&L13&\")\"","v":"()"}]
[null,"auto",null,null,null,null,null,null,"",1,"Город Чистополь","92659101",{"$f":"mergeValue(H14)","v":"Чистопольский муниципальный район"},null,null,null,null,{"$f":"K14&\" (\"&L14&\")\"","v":"Город Чистополь (92659101)"}]
[null,null,null,null,null,null,null,null,"",null,""]
[null,null,null,null,null,"","","",""]
[null,"man",null,null,"","",null,null,"",null,null,null,null,null,null,null,"Добавить территорию действия тарифа"]

{"sheet":"Дифференциация","index":5,"n_rows":26,"n_cols":26,"rows_kept":26,"cut":false,"hidden":false,"merged":[[21,9,22,9],[17,9,17,12],[19,6,19,7],[19,10,19,11],[18,10,18,11],[18,6,18,7],[24,2,25,2],[11,1,11,3],[12,1,12,3],[21,4,23,4],[21,5,23,5],[21,3,23,3],[17,5,17,8],[21,6,22,6],[21,7,22,7],[21,8,22,8],[17,0,18,0],[17,3,17,4],[3,3,3,8],[4,3,4,8],[7,4,7,5],[8,1,8,3],[5,0,6,5],[7,1,7,3],[8,4,8,5],[9,1,9,3],[9,4,9,5],[13,1,13,3],[10,4,10,5],[10,1,10,3]]}
[]
[]
[]
[null,null,null,{"$f":"Титульный!E5","v":"Информация о наличии (отсутствии) технической возможности подключения к централизованной системе холодного водоснабжения, а также о регистрации и ходе реализации заявок о подключении к централизованной системе холодного водоснабжения"}]
[null,null,null,{"$f":"IF(org=0,\"Не определено\",org)","v":"АО \"Чистополь-Водоканал\""}]
[]
[]
[]
[]
[]
[]
[]
[]
[]
[]
[]
[]
[null,null,null,"Вид деятельности",null,"Дифференциация по территориям оказания услуг",null,null,null,"Дифференциация по централизованным системам коммунальной инфраструктуры"]
[null,null,null,"№ п/п","Наименование","да/нет","№ п/п",null,"Наименование","да/нет","№ п/п",null,"Наименование"]
[null,null,null,"1","2","3","4",null,"5","6","7",null,"8"]
[]
[null,null,null,"1","Подключение (технологическое присоединение) к централизованной системе водоснабжения","нет",null,1,null,"нет","","1","",null,null,null,null,null,null,null,null,null,null,4189677,"a",1705000]
[null,null,null,null,null,null,null,null,null,null,"",null,""]
[null,null,null,null,null,null,null,null,"",null,""]
[null,null,null,null,"",null,null,null,null,null,""]
[null,null,null,null,null,null,null,null,null,null,""]

{"sheet":"Форма 1.0.1","index":6,"n_rows":20,"n_cols":7,"rows_kept":20,"cut":false,"hidden":false,"merged":[[19,4,19,5],[4,3,4,6],[5,3,5,6],[7,3,7,6],[8,3,8,5],[8,6,9,6]]}
[null,null,null,null,null,null,4]
[]
[]
[]
[null,null,null,"Форма 1.0.1 Основные параметры раскрываемой информации 1"]
[null,null,null,{"$f":"IF(org=0,\"Не определено\",org)","v":"АО \"Чистополь-Водоканал\""}]
[]
[null,null,22,"Форма 1.0.1"]
[null,null,null,"Параметры формы",null,null,"Описание параметров формы"]
[null,null,null,"№ п/п","Наименование параметра","Информация"]
[null,null,null,"1",2,3,4]
[null,null,null,1,"Дата заполнения/внесения изменений",{"$f":"IF(form_up_date=\"\",\"\",form_up_date)","v":"01.04.2019"},"Указывается календарная дата первичного заполнения или внесения изменений в форму в виде «ДД.ММ.ГГГГ»."]
[null,null,null,"2.1","Наименование централизованной системы коммунальной инфраструктуры","наименование отсутствует","Указывается наименование централизованной системы холодного водоснабжения/горячего водоснабжения/водоотведения/теплоснабжения, к которой относится размещаемая информация.\nВ случае наличия нескольких централизованных систем коммунальной инфраструктуры, информация по каждой из них указывается в отдельной строке. "]
[null,null,null,"3.1","Наименование регулируемого вида деятельности","Подключение (технологическое присоединение) к централизованной системе водоснабжения","Указывается наименование вида регулируемой деятельности."]
[null,null,null,"4.1","Территория оказания услуги по регулируемому виду деятельности","x"]
[null,null,null,{"$f":"D15&\".1\"","v":"4.1.1"},"Субъект РФ",{"$f":"IF(region_name=\"\",\"\",region_name)","v":"Республика Татарстан"},"Указывается наименование субъекта Российской Федерации"]
[null,null,null,"4.1.1.1","муниципальный район","Чистопольский муниципальный район","Указывается наименование муниципального района, на территории которого организация оказывает услуги по регулируемому виду деятельности."]
[null,null,null,"4.1.1.1.1","муниципальное образование","Город Чистополь (92659101)","Указывается наименование и код муниципального района, муниципального образования в соответствии с Общероссийским классификатором территорий муниципальных образований (далее - ОКТМО), входящего в муниципальный район, на территории которого организация оказывает услуги по регулируемому виду деятельности.\nВ случае оказания услуг по регулируемому виду деятельности на территории нескольких муниципальных районов (муниципальных образований) данные по каждому их них указываются в отдельной строке."]
[]
[null,null,null,null,"  1 Информация по данной форме публикуется при раскрытии информации по каждой из форм."]

{"sheet":"Форма 2.10","index":7,"n_rows":18,"n_cols":8,"rows_kept":18,"cut":false,"hidden":false,"merged":[[7,7,8,7],[4,3,4,6],[5,3,5,6],[7,3,8,3],[7,4,8,4],[7,5,8,5]]}
[null,null,null,null,null,null,4]
[null,null,null,null,null,"тыс.куб.м/сутки",null,"Указывается резерв мощности для централизованной системы холодного водоснабжения, тариф для которой не является отличным от тарифов других централизованных систем холодного водоснабжения регулируемой организации.\nПри использовании регулируемой организацией нескольких централизованных систем холодного водоснабжения информация о резерве мощности таких систем указывается в отношении каждой централизованной системы холодного водоснабжения в отдельных строках."]
[]
[]
[null,null,null,{"$f":"Титульный!E5","v":"Информация о наличии (отсутствии) технической возможности подключения к централизованной системе холодного водоснабжения, а также о регистрации и ходе реализации заявок о подключении к централизованной системе холодного водоснабжения"}]
[null,null,null,{"$f":"IF(org=0,\"Не определено\",org)","v":"АО \"Чистополь-Водоканал\""}]
[null,null,null,null,null,null,22]
[null,null,null,"№ п/п","Наименование параметра","Единица измерения","Вид деятельности:\r\n  - Подключение (технологическое присоединение) к централизованной системе водоснабжения\r\n\r\nТерритория оказания услуг:\r\n  - без дифференциации\r\n\r\nЦентрализованная система холодного водоснабжения:\r\n  - наименование отсутствует","Описание параметров формы"]
[null,null,null,null,null,null,"Информация"]
[null,null,null,"1","2","3",{"$f":"G1&\".1\"","v":"4.1"}]
[null,null,null,1,"Количество поданных заявок","ед",0,"Указывается количество поданных заявок на подключение (технологическое присоединение) к централизованной системе холодного водоснабжения в течение отчетного квартала."]
[null,null,null,2,"Количество исполненных заявок","ед",0,"Указывается количество исполненных заявок на подключение (технологическое присоединение) к централизованной системе холодного водоснабжения в течение отчетного квартала."]
[null,null,null,3,"Количество заявок с решением об отказе в подключении","ед",0,"Указывается количество заявок с решением об отказе о подключении (технологическому присоединению) к централизованной системе холодного водоснабжения в течение отчетного квартала."]
[null,null,null,4,"Причины отказа в подключении","x",null,"Указывается текстовое описание причин принятия решений об отказе в подключении (технологическом присоединении) к централизованной системе холодного водоснабжения в случае.\nНе заполняется в случае, если решения об отказе в подключении (технологическом присоединении) в течение отчетного периода не принимались."]
[null,null,null,5,"Резерв мощности централизованной системы холодного водоснабжения в течение квартала, в том числе:","тыс.куб.м/сутки",{"$f":"SUM(G16:G18)","v":8},"Указывается резерв мощности централизованной системы холодного водоснабжения (совокупности централизованных систем холодного водоснабжения) в случае, если для них установлены одинаковые тарифы в сфере холодного водоснабжения.\nВ случае если регулируемыми организациями оказываются услуги по холодному водоснабжению по нескольким технологически не связанным между собой централизованным системам холодного водоснабжения, и если в отношении указанных систем устанавливаются различные тарифы в сфере холодного водоснабжения, то информация раскрывается отдельно по каждой централизованной системе холодного водоснабжения."]
[null,null,null,"5.0"]
[null,null,null,"5.1","Централизованная система холодного водоснабжения","тыс.куб.м/сутки",8,"Указывается резерв мощности для централизованной системы холодного водоснабжения, тариф для которой не является отличным от тарифов других централизованных систем холодного водоснабжения регулируемой организации.\nПри использовании регулируемой организацией нескольких централизованных систем холодного водоснабжения информация о резерве мощности таких систем указывается в отношении каждой централизованной системы холодного водоснабжения в отдельных строках."]
[null,null,null,null,"Добавить централизованную систему холодного водоснабжения"]

{"sheet":"Сведения об изменении","index":8,"n_rows":14,"n_cols":5,"rows_kept":14,"cut":false,"hidden":true,"merged":[[6,3,6,4],[7,3,7,4]]}
[]
[]
[]
[]
[]
[]
[null,null,null,"Сведения об изменениях в первоначально опубликованной информации"]
[null,null,null,{"$f":"IF(org=0,\"Не определено\",org)","v":"АО \"Чистополь-Водоканал\""}]
[]
[null,null,null,"№ п/п","Сведения"]
[null,null,null,"1","2"]
[null,null,null,0]
[null,null,null,1]
[null,null,null,null,"Добавить строку"]

{"sheet":"Форма 1.0.2","index":9,"n_rows":15,"n_cols":13,"rows_kept":15,"cut":false,"hidden":true,"merged":[[11,10,12,10],[14,4,14,9],[4,3,4,9],[7,3,7,9],[7,10,9,10],[8,3,9,3],[8,4,8,5],[8,6,8,9]]}
[]
[]
[]
[]
[null,null,null,"Форма 1.0.2 Информация о публикации в печатных изданиях 2"]
[]
[]
[null,null,null,"Параметры формы",null,null,null,null,null,null,"Описание параметров формы"]
[null,null,null,"№ п/п","Форма публикации",null,"Официальное печатное издание"]
[null,null,null,null,"Номер","Наименование","Наименование","Номер","Дата выпуска","Ссылка на документ"]
[null,null,null,"1","2","3","4","5","6","7","8"]
["3","",null,"1",null,null,null,null,null,null,"В колонке «Дата выпуска» дата выпуска печатного издания указывается в виде «ДД.ММ.ГГГГ».\nВ колонке «Ссылка на документ» указывается ссылка на отсканированную копию печатного издания, предварительно загруженную в хранилище федеральной государственной информационной системы «Единая информационно-аналитическая система «Федеральный орган регулирования - региональные органы регулирования - субъекты регулирования» (далее – ФГИС ЕИАС), с опубликованной информацией.\nВ случае публикации информации в нескольких печатных изданиях информация по каждому из них указывается в отдельной строке.",null,{"$f":"IF(ISERROR(INDEX(kind_of_nameforms,MATCH(E12,kind_of_forms,0),1)),\"\",INDEX(kind_of_nameforms,MATCH(E12,kind_of_forms,0),1))","v":""}]
[null,null,null,null,"Добавить строку"]
[]
[null,null,null,null,"2 В данной форме публикуется информация по каждой из форм раскрытия, данные в которой относятся к муниципальному образованию, в котором отсутствует доступ в информационно-телекоммуникационную сеть «Интернет» (далее – сеть «Интернет»)."]

{"sheet":"Комментарии","index":10,"n_rows":13,"n_cols":5,"rows_kept":13,"cut":false,"hidden":false,"merged":[[6,3,6,4],[7,3,7,4]]}
[]
[]
[]
[]
[]
[]
[null,null,null,"Комментарии"]
[null,null,null,{"$f":"IF(org=0,\"Не определено\",org)","v":"АО \"Чистополь-Водоканал\""}]
[]
[null,null,null,"№ п/п","Комментарий"]
[null,null,null,"1","2"]
[null,null,null,0]
[null,null,null,null,"Добавить"]

{"sheet":"Проверка","index":11,"n_rows":4,"n_cols":5,"rows_kept":4,"cut":false,"hidden":false,"merged":[[1,1,1,4]]}
[]
[null,"Результат проверки"]
[]
[null,"Ссылка1","Ссылка2","Причина","Статус"]

{"sheet":"modReestr","index":12,"n_rows":0,"n_cols":0,"rows_kept":0,"cut":false,"hidden":true,"merged":[]}

{"sheet":"AllSheetsInThisWorkbook","index":13,"n_rows":39,"n_cols":2,"rows_kept":39,"cut":false,"hidden":true,"merged":[]}
["Расчетные листы","Скрытые листы"]
["Инструкция","modReestr"]
["Лог обновления","AllSheetsInThisWorkbook"]
["Титульный","TEHSHEET"]
["Территории","modCheckCyan"]
["Дифференциация","modInfo"]
["Форма 1.0.1","et_union_hor"]
["Форма 2.10","et_union_vert"]
["Сведения об изменении","modList00"]
["Форма 1.0.2","modList01"]
["Комментарии","modList02"]
["Проверка","modList03"]
[null,"modList04"]
[null,"modList07"]
[null,"modList09"]
[null,"modHTTP"]
[null,"modfrmRegion"]
[null,"MR_LIST"]
[null,"REESTR_VT"]
[null,"REESTR_VED"]
[null,"modfrmReestrObj"]
[null,"DataOrg"]
[null,"modProv"]
[null,"modfrmReestr"]
[null,"modUpdTemplMain"]
[null,"REESTR_ORG"]
[null,"modClassifierValidate"]
[null,"modHyp"]
[null,"modfrmDateChoose"]
[null,"modComm"]
[null,"modThisWorkbook"]
[null,"REESTR_MO"]
[null,"REESTR_MO_FILTER"]
[null,"modfrmReestrMR"]
[null,"modServiceModule"]
[null,"modfrmCheckUpdates"]
[null,"REESTR_DS"]
[null,"REESTR_CHS"]
[null,"REESTR_LINK"]

{"sheet":"TEHSHEET","index":14,"n_rows":87,"n_cols":20,"rows_kept":87,"cut":false,"hidden":true,"merged":[[0,18,0,19]]}
["REGION",null,"year_list","logical","Месяц\n(MONTH)","Квартал\n(QUARTER)","Месяц\n(kind_of_publication)","Единица измерения объема оказываемых услуг ГВС\n/kind_of_unit_GVS/","Вид тарифа\n/list_of_tariff/","mr_id","версия шаблона\n (DocProp_Version)","0.1","Тип отчета\ndata_type",null,null,null,null,null,"Перечень форм\n(kind_of_forms)"]
["Алтайский край",null,2013,"да","январь","I квартал","На официальном сайте организации","тыс.куб.м/сутки",null,52,"код шаблона\n(DocProp_TemplateCode)","FAS.JKH.OPEN.INFO.QUARTER.HVS","первичное раскрытие информации",null,null,null,null,null,"Форма 1.0.1","Основные параметры раскрываемой информации"]
["Амурская область",null,2014,"нет","февраль","II квартал","На сайте регулирующего органа","Гкал/час","Без дифференциации","sys_id","сфера\n(TSphere)","ХВС","изменения в раскрытой ранее информации",null,null,null,null,null,"Форма 2.10",{"$f":"Титульный!E5","v":"Информация о наличии (отсутствии) технической возможности подключения к централизованной системе холодного водоснабжения, а также о регистрации и ходе реализации заявок о подключении к централизованной системе холодного водоснабжения"}]
["Архангельская область",null,2015,null,"март","III квартал",null,"куб.м/час",null,104,"сфера(латиница)\n(TSphere_trans)","VS"]
["Астраханская область",null,2016,null,"апрель","IV квартал",null,null,null,null,"сфера расширено\n(TSphere_full)"]
["Белгородская область",null,2017,null,"май"]
["Брянская область",null,2018,null,"июнь"]
["Владимирская область",null,2019,null,"июль",null,null,null,null,null,"true"]
["Волгоградская область",null,2020,null,"август"]
["Вологодская область",null,null,null,"сентябрь"]
["Воронежская область",null,null,null,"октябрь"]
["г.Байконур",null,null,null,"ноябрь"]
["г. Москва",null,null,null,"декабрь"]
["г.Санкт-Петербург"]
["г.Севастополь"]
["Еврейская автономная область",null,null,null,null,null,"Текущая дата"]
["Забайкальский край",null,"Организация",{"$f":"IF(f_year = \"\",\"\", IF(LEN(f_quart)=0,\"\",IF(f_quart=\"I квартал\", \"01.01.\"&f_year,IF(f_quart=\"II квартал\",\"01.04.\"&f_year,(IF(f_quart=\"III квартал\", \"01.07.\"&f_year,\"01.10.\"&f_year)))) ))","v":"01.01.2019"},{"$f":"IF(f_year = \"\",\"\", IF(LEN(f_quart)=0,\"\",IF(f_quart=\"I квартал\", \"31.03.\"& f_year,IF(f_quart=\"II квартал\",\"30.06.\"& f_year,(IF(f_quart=\"III квартал\", \"30.09.\"& f_year,\"31.12.\"& f_year)))) ))","v":"31.03.2019"},null,"01.04.2019 16:31:15"]
["Ивановская область"]
["Иркутская область",null,null,null,null,null,"Признак изменения данных на листе Доступ к товарам и услугам"]
["Кабардино-Балкарская республика",null,"Виды деятельности",null,null,null,true]
["Калининградская область"]
["Калужская область"]
["Камчатский край"]
["Карачаево-Черкесская республика"]
["Кемеровская область"]
["Кировская область"]
["Костромская область"]
["Краснодарский край"]
["Красноярский край"]
["Курганская область"]
["Курская область"]
["Ленинградская область"]
["Липецкая область"]
["Магаданская область"]
["Московская область"]
["Мурманская область"]
["Ненецкий автономный округ"]
["Нижегородская область"]
["Новгородская область"]
["Новосибирская область"]
["Омская область"]
["Оренбургская область"]
["Орловская область"]
["Пензенская область"]
["Пермский край"]
["Приморский край"]
["Псковская область"]
["Республика Адыгея"]
["Республика Алтай"]
["Республика Башкортостан"]
["Республика Бурятия"]
["Республика Дагестан"]
["Республика Ингушетия"]
["Республика Калмыкия"]
["Республика Карелия"]
["Республика Коми"]
["Республика Крым"]
["Республика Марий Эл"]
["Республика Мордовия"]
["Республика Саха (Якутия)"]
["Республика Северная Осетия-Алания"]
["Республика Татарстан"]
["Республика Тыва"]
["Республика Хакасия"]
["Ростовская область"]
["Рязанская область"]
["Самарская область"]
["Саратовская область"]
["Сахалинская область"]
["Свердловская область"]
["Смоленская область"]
["Ставропольский край"]
["Тамбовская область"]
["Тверская область"]
["Томская область"]
["Тульская область"]
["Тюменская область"]
["Удмуртская республика"]
["Ульяновская область"]
["Хабаровский край"]
["Ханты-Мансийский автономный округ"]
["Челябинская область"]
["Чеченская республика"]
["Чувашская республика"]
["Чукотский автономный округ"]
["Ямало-Ненецкий автономный округ"]
["Ярославская область"]

{"sheet":"modCheckCyan","index":15,"n_rows":8,"n_cols":1,"rows_kept":8,"cut":false,"hidden":true,"merged":[]}
[]
[{"$f":"IF('Сведения об изменении'!$E$13=\"\",1,0)","v":1}]
[{"$f":"IF(Дифференциация!$E$22=\"\",1,0)","v":0}]
[{"$f":"IF(Территории!$E$12=\"\",1,0)","v":0}]
[{"$f":"IF('Форма 2.10'!$G$11=\"\",1,0)","v":0}]
[{"$f":"IF('Форма 2.10'!$G$12=\"\",1,0)","v":0}]
[{"$f":"IF('Форма 2.10'!$G$13=\"\",1,0)","v":0}]
[{"$f":"IF('Форма 2.10'!$E$17=\"\",1,0)","v":0}]

{"sheet":"modInfo","index":16,"n_rows":11,"n_cols":2,"rows_kept":11,"cut":false,"hidden":true,"merged":[[4,3,4,10],[0,3,0,10],[1,3,1,10],[2,3,2,10],[3,3,3,10]]}
[null,"Территории"]
[1,"Наименование территории оказания услуг для целей идентификации"]
[2,"Муниципальные районы и муниципальные образования, на территории которых осуществляется оказание услуг"]
[null,"Дифференциация"]
[1,"В случае, если регулируемая организация осуществляет несколько видов деятельности, информация о которых подлежит раскрытию, информация по каждому виду деятельности раскрывается отдельно."]
[2,"Поле заполняется выбором значений из списка. Если значений для выбора нет - убедитесь, что лист \"Территории\" заполнен."]
[3,"Условное наименование централизованной системы коммунальной инфраструктуры для целей идентификации."]
[4,"В случае, если регулируемыми организациями оказываются услуги по нескольким технологически не связанным между собой  централизованным системам коммунальной инфраструктуры и если в отношении указанных централизованных систем устанавливаются различные тарифы, то информация раскрывается отдельно по каждой централизованной системе коммунальной инфраструктуры."]
[null,"Сведения об изменении"]
[1,"Лист заполняется в случае, если на Титульном листе в поле \"Тип отчета\" выбрано значение «Изменения в раскрытой ранее информации»."]
[null,"Нет доступных обновлений, версия отчёта актуальна"]

{"sheet":"et_union_hor","index":17,"n_rows":60,"n_cols":26,"rows_kept":60,"cut":false,"hidden":true,"merged":[[50,3,50,5],[50,6,51,6],[14,2,15,2],[14,3,15,3],[14,4,15,4],[19,2,20,2],[19,5,20,5],[34,6,35,6],[19,6,20,6],[49,3,49,6],[34,7,35,7],[34,8,35,8],[34,9,35,9],[28,8,29,8],[28,9,29,9],[19,7,20,7],[28,3,30,3],[28,4,30,4],[28,5,30,5],[28,6,29,6],[28,7,29,7]]}
[]
[]
["et_Comm"]
[]
[]
[]
["et_List04"]
[]
[]
[]
[]
[]
["et_List09_0"]
[]
[null,"auto",null,1,null,null,0,null,null,"0",null,null,{"$f":"mergeValue(H15)","v":0},null,null,{"$f":"IF(ISERROR(MATCH(MID(Q15,1,250),MID(note_ter,1,250),0)),\"n\",\"y\")","v":"y"},null,{"$f":"K15&\"(\"&L15&\")\"","v":"()"}]
[null,null,null,null,null,null,null,"Добавить МР"]
[]
["et_List09_1"]
[]
[null,"auto",null,null,null,null,0,null,null,"0",null,null,{"$f":"mergeValue(H20)","v":0},null,null,null,null,{"$f":"K20&\"(\"&L20&\")\"","v":"()"}]
[null,null,null,null,null,null,null,null,null,null,"Добавить МО"]
[]
["et_List09_2"]
[]
[null,"auto",null,null,null,null,null,null,null,0,null,null,{"$f":"mergeValue(H25)","v":0},null,null,null,null,{"$f":"K25&\" (\"&L25&\")\"","v":" ()"}]
[]
["et_List07_1"]
[]
[null,null,null,"1",null,"нет",null,1,null,"нет",null,"1",null,null,null,null,null,null,null,null,null,null,null,null,"a",1705000]
[null,null,null,null,null,null,null,null,null,null,null,null,"Добавить централизованную систему коммунальной инфраструктуры"]
[null,null,null,null,null,null,null,null,"Добавить описание территории оказания услуг"]
[]
["et_List07_4"]
[]
[null,null,null,null,null,null,null,1,null,"нет",null,"1",null,null,null,null,null,null,null,null,null,null,null,null,"a",1705000]
[null,null,null,null,null,null,null,null,null,null,null,null,"Добавить централизованную систему коммунальной инфраструктуры"]
[]
["et_List07_5"]
[]
[null,null,null,null,null,null,null,null,null,null,null,"1",null,null,null,null,null,null,null,null,null,null,null,null,"a",1705000]
[]
[]
["et_List03"]
[]
["3","",null,null,null,null,null,null,null,null,null,null,{"$f":"IF(ISERROR(INDEX(kind_of_nameforms,MATCH(E45,kind_of_forms,0),1)),\"\",INDEX(kind_of_nameforms,MATCH(E45,kind_of_forms,0),1))","v":""}]
[]
["et_List02_st","et_List02_ter","et_List02_mr","et_List02_mo"]
[]
[]
[null,null,null,"Форма 1.0.1"]
[null,null,null,"Параметры формы",null,null,"Описание параметров формы"]
[null,null,null,"№ п/п","Наименование параметра","Информация"]
[null,null,null,"1",2,3,4]
[null,null,null,1,"Дата заполнения/внесения изменений",{"$f":"IF(form_up_date=\"\",\"\",form_up_date)","v":"01.04.2019"},"Указывается календарная дата первичного заполнения или внесения изменений в форму в виде «ДД.ММ.ГГГГ»."]
[null,null,null,"2.1","Наименование централизованной системы коммунальной инфраструктуры",null,"Указывается наименование централизованной системы холодного водоснабжения/горячего водоснабжения/водоотведения/теплоснабжения, к которой относится размещаемая информация.\nВ случае наличия нескольких централизованных систем коммунальной инфраструктуры, информация по каждой из них указывается в отдельной строке. "]
[null,null,null,"3.1","Наименование регулируемого вида деятельности",null,"Указывается наименование вида регулируемой деятельности."]
[null,null,null,"4.1","Территория оказания услуги по регулируемому виду деятельности","x"]
[null,null,null,{"$f":"D57&\".1\"","v":"4.1.1"},"Субъект РФ",{"$f":"IF(region_name=\"\",\"\",region_name)","v":"Республика Татарстан"},"Указывается наименование субъекта Российской Федерации"]
[null,null,null,"4.1.1.1","муниципальный район",null,"Указывается наименование муниципального района, на территории которого организация оказывает услуги по регулируемому виду деятельности."]
[null,null,null,"4.1.1.1.1","муниципальное образование",null,"Указывается наименование и код муниципального района, муниципального образования в соответствии с Общероссийским классификатором территорий муниципальных образований (далее - ОКТМО), входящего в муниципальный район, на территории которого организация оказывает услуги по регулируемому виду деятельности.\nВ случае оказания услуг по регулируемому виду деятельности на территории нескольких муниципальных районов (муниципальных образований) данные по каждому их них указываются в отдельной строке."]

{"sheet":"et_union_vert","index":18,"n_rows":0,"n_cols":0,"rows_kept":0,"cut":false,"hidden":true,"merged":[]}

{"sheet":"modList00","index":19,"n_rows":0,"n_cols":0,"rows_kept":0,"cut":false,"hidden":true,"merged":[]}

{"sheet":"modList01","index":20,"n_rows":0,"n_cols":0,"rows_kept":0,"cut":false,"hidden":true,"merged":[]}

{"sheet":"modList02","index":21,"n_rows":0,"n_cols":0,"rows_kept":0,"cut":false,"hidden":true,"merged":[]}

{"sheet":"modList03","index":22,"n_rows":0,"n_cols":0,"rows_kept":0,"cut":false,"hidden":true,"merged":[]}

{"sheet":"modList04","index":23,"n_rows":0,"n_cols":0,"rows_kept":0,"cut":false,"hidden":true,"merged":[]}

{"sheet":"modList07","index":24,"n_rows":0,"n_cols":0,"rows_kept":0,"cut":false,"hidden":true,"merged":[[5,0,6,1],[17,0,18,0]]}

{"sheet":"modList09","index":25,"n_rows":0,"n_cols":0,"rows_kept":0,"cut":false,"hidden":true,"merged":[]}

{"sheet":"modHTTP","index":26,"n_rows":0,"n_cols":0,"rows_kept":0,"cut":false,"hidden":true,"merged":[]}

{"sheet":"modfrmRegion","index":27,"n_rows":0,"n_cols":0,"rows_kept":0,"cut":false,"hidden":true,"merged":[]}

{"sheet":"MR_LIST","index":28,"n_rows":0,"n_cols":0,"rows_kept":0,"cut":false,"hidden":true,"merged":[]}

{"sheet":"REESTR_VT","index":29,"n_rows":0,"n_cols":0,"rows_kept":0,"cut":false,"hidden":true,"merged":[]}

{"sheet":"REESTR_VED","index":30,"n_rows":8,"n_cols":2,"rows_kept":8,"cut":false,"hidden":true,"merged":[]}
["ID_TARIFF_NAME","VED_NAME"]
[4189671,"Холодное водоснабжение. Питьевая вода"]
[4189672,"Холодное водоснабжение. Техническая вода"]
[4189673,"Холодное водоснабжение. Подвозная вода"]
[4189674,"Транспортировка. Питьевая вода"]
[4189675,"Транспортировка. Техническая вода"]
[4189676,"Транспортировка. Подвозная вода"]
[4189677,"Подключение (технологическое присоединение) к централизованной системе водоснабжения"]

{"sheet":"modfrmReestrObj","index":31,"n_rows":0,"n_cols":0,"rows_kept":0,"cut":false,"hidden":true,"merged":[]}

{"sheet":"DataOrg","index":32,"n_rows":0,"n_cols":0,"rows_kept":0,"cut":false,"hidden":true,"merged":[]}

{"sheet":"modfrmReestr","index":33,"n_rows":0,"n_cols":0,"rows_kept":0,"cut":false,"hidden":true,"merged":[]}

{"sheet":"modUpdTemplMain","index":34,"n_rows":0,"n_cols":0,"rows_kept":0,"cut":false,"hidden":true,"merged":[]}

{"sheet":"REESTR_ORG","index":35,"n_rows":206,"n_cols":10,"rows_kept":206,"cut":false,"hidden":true,"merged":[]}
["№","REGION_ID","REGION_NAME","RST_ORG_ID","ORG_NAME","INN_NAME","KPP_NAME","ORG_START_DATE","ORG_END_DATE"]
[1,"2642","Республика Татарстан","28493154","АО \"Азнакаевское ПТС\"","1643013463","164301001",null,null,"VS"]
[2,"2642","Республика Татарстан","26402601","АО \"Альметьевск-Водоканал\"","1644034674","164401001",null,null,"VS"]
[3,"2642","Республика Татарстан","30364005","АО \"Аммоний\"","1627005779","997550001",null,null,"VS"]
[4,"2642","Республика Татарстан","26354328","АО \"Балтасинское МПП ЖКХ\"","1612005906","161201001",null,null,"VS"]
[5,"2642","Республика Татарстан","28868827","АО \"Буинск-Водоканал\"","1614007578","161401001",null,null,"VS"]
[6,"2642","Республика Татарстан","26354423","АО \"Водопроводно-канализационное и энергетическое хозяйство\"","1651035245","165101001",null,null,"VS"]
[7,"2642","Республика Татарстан","26354332","АО \"Высокогорские коммунальные сети\"","1616016031","161601001",null,null,"VS"]
[8,"2642","Республика Татарстан","30791606","АО \"ГУ ЖКХ\"","5116000922","166045001",null,null,"VS"]
[9,"2642","Республика Татарстан","26560525","АО \"ГУ ЖКХ\"","5116000922","511601001","13-05-2009 00:00:00",null,"VS"]
[10,"2642","Республика Татарстан","30335229","АО \"ГУ ЖКХ\"","5116000922","770401001",null,null,"VS"]
[11,"2642","Республика Татарстан","29645570","АО \"ЗВКС\"","1648041104","164801001",null,null,"VS"]
[12,"2642","Республика Татарстан","26322532","АО \"КМПО\"","1657005416","166101001",null,null,"VS"]
[13,"2642","Республика Татарстан","26508783","АО \"Казанский оптико-механический завод\"","1660004229","168150001",null,null,"VS"]
[14,"2642","Республика Татарстан","26779141","АО \"Казаньзернопродукт\"","1658001372","165801001",null,null,"VS"]
[15,"2642","Республика Татарстан","26402595","АО \"Коммунальные сети Мензелинского района\"","1628006905","162801001",null,null,"VS"]
[16,"2642","Республика Татарстан","30906854","АО \"Кузембетьевский РМЗ\"","1628000773","162801001",null,null,"VS"]
[17,"2642","Республика Татарстан","26405831","АО \"Мамадышский водоканал\"","1626008223","162601001",null,null,"VS"]
[18,"2642","Республика Татарстан","26322533","АО \"Международный аэропорт \"Казань\"","1660000344","162401001",null,null,"VS"]
[19,"2642","Республика Татарстан","26354354","АО \"Муслюмовские инженерные сети\"","1629003801","162901001",null,null,"VS"]
[20,"2642","Республика Татарстан","26354356","АО \"Нурлатские тепловые сети\"","1632009786","163201001",null,null,"VS"]
[21,"2642","Республика Татарстан","30353826","АО \"ОЭЗ \"Иннополис\"","1655265698","161501001",null,null,"VS"]
[22,"2642","Республика Татарстан","26322562","АО \"ОЭЗ ППТ \"Алабуга\"","1646019914","164601001",null,null,"VS"]
[23,"2642","Республика Татарстан","26354409","АО \"Осиновские инженерные сети\"","1648018708","164801001",null,null,"VS"]
[24,"2642","Республика Татарстан","27908518","АО \"ПОЗиС","1648032420","168150001","19-12-2011 00:00:00",null,"VS"]
[25,"2642","Республика Татарстан","27556424","АО \"РПО \"Таткоммунэнерго\"","1660093204","166001001",null,null,"VS"]
[26,"2642","Республика Татарстан","26322556","АО \"СК \"Энерготехника\"","1660110837","166001001",null,null,"VS"]
[27,"2642","Республика Татарстан","26405842","АО \"СОВ-НКНХ\"","1651052730","165101001",null,null,"VS"]
[28,"2642","Республика Татарстан","26354361","АО \"Сабинское МПП ЖКХ\"","1635005846","163501001",null,null,"VS"]
[29,"2642","Республика Татарстан","26601772","АО \"Судоходная компания \"Татфлот\"","1655063726","161501001",null,null,"VS"]
[30,"2642","Республика Татарстан","28427136","АО \"ТАНЕКО\"","1651044095","997250001",null,null,"VS"]
[31,"2642","Республика Татарстан","26489288","АО \"Татэнерго\"","1657036630","165501001","01-02-2009 00:00:00",null,"VS"]
[32,"2642","Республика Татарстан","26405861","АО \"Тетюши-водоканал\"","1638004833","163801001",null,null,"VS"]
[33,"2642","Республика Татарстан","28953157","АО \"Транснефть-Прикамье\"","1645000340","165501001",null,null,"VS"]
[34,"2642","Республика Татарстан","28932690","АО \"Чистополь-Водоканал\"","1652022810","165201001",null,null,"VS"]
[35,"2642","Республика Татарстан","26808802","Горьковская дирекция по тепловодоснабжению структурное подразделение Центральной дирекции по тепловодоснабжению - филиала ОАО \"РЖД\"","7708503727","525745041",null,null,"VS"]
[36,"2642","Республика Татарстан","27656185","ЗАО \"Татгазэнерго\"","1655098239","162702001",null,null,"VS"]
[37,"2642","Республика Татарстан","26508701","ИП Зарипов Н.Г.","163100024393","отсутствует",null,null,"VS"]
[38,"2642","Республика Татарстан","28982416","ИП Леонтьев Николай Валериевич","164402960030","отсутствует",null,null,"VS"]
[39,"2642","Республика Татарстан","28828851","ИП Рамазанов Рифхат Харрасович","163100934434","отсутствует",null,null,"VS"]
[40,"2642","Республика Татарстан","26811451","ИП Хасанов Фанис Фоатович","164408469943","отсутствует",null,null,"VS"]
[41,"2642","Республика Татарстан","27995794","КФХ \"Козлова М.И.\"","163100013225","отсутствует",null,null,"VS"]
[42,"2642","Республика Татарстан","26807701","Казанская ТЭЦ-1 - филиал АО \"Татэнерго\"","1657036630","165902001",null,null,"VS"]
[43,"2642","Республика Татарстан","26807704","Казанская ТЭЦ-2 - филиал АО \"Татэнерго\"","1657036630","166102001",null,null,"VS"]
[44,"2642","Республика Татарстан","26804882","Казанский филиал Акционерного общества \"Девелоперская корпорация \"Антей\"","5029087035","163302001",null,null,"VS"]
[45,"2642","Республика Татарстан","26812367","Куйбышевская дирекция  по тепловодоснабжению структурное подразделение Центральной дирекции по тепловодоснабжению филиала ПАО «РЖД»","7708503727","631145034",null,null,"VS"]
[46,"2642","Республика Татарстан","26354341","Лечебно - профилактическое частное учреждение профсоюзов санаторий \"Васильевский\"","1620000411","162001001",null,null,"VS"]
[47,"2642","Республика Татарстан","26354350","Лечебно-профилактическое частное учреждение профсоюзов Санаторий \"Бакирово\"","1625000119","164901001",null,null,"VS"]
[48,"2642","Республика Татарстан","26354352","Лечебно-профилактическое частное учреждение профсоюзов санаторий \"Шифалы су (целебная вода) - Ижминводы\"","1627000509","162701001",null,null,"VS"]
[49,"2642","Республика Татарстан","28827948","МКП БМР \"Водоканал\"","1611290182","161101001",null,null,"VS"]
[50,"2642","Республика Татарстан","26354325","МУП \"Атнинское ЖКХ\"","1610002473","161001001",null,null,"VS"]
[51,"2642","Республика Татарстан","28817030","МУП \"Благоустройство и озеленение\"","1629004227","162900001",null,null,"VS"]
[52,"2642","Республика Татарстан","26405877","МУП \"Водоканал\"","1653006666","166001001",null,null,"VS"]
[53,"2642","Республика Татарстан","28507710","МУП \"Волжанка\"","1615007482","161501001",null,null,"VS"]
[54,"2642","Республика Татарстан","27900153","МУП \"Елабужский Водоканал\"","1646033740","164601001","16-10-2012 00:00:00",null,"VS"]
[55,"2642","Республика Татарстан","26405916","МУП \"ЖКХ (Инженерные сети)\"","1644045186","164401001",null,null,"VS"]
[56,"2642","Республика Татарстан","26354344","МУП \"Кайбицкое ЖКХ\"","1621000252","162101001",null,null,"VS"]
[57,"2642","Республика Татарстан","28794019","МУП \"Коммунальные сети Черемшанского района\"","1640006796","164001001",null,null,"VS"]
[58,"2642","Республика Татарстан","28792037","МУП \"Нижний Услон\"","1615007316","161501001",null,null,"VS"]
[59,"2642","Республика Татарстан","30991684","МУП \"Новошешминское ЖКХ\"","1631009663","163101001",null,null,"VS"]
[60,"2642","Республика Татарстан","26354343","МУП \"Нурлатское МПП ЖКХ\"","1620002144","162001001",null,null,"VS"]
[61,"2642","Республика Татарстан","31004867","МУП \"Перспектива\"","1617005900","161701001",null,null,"VS"]
[62,"2642","Республика Татарстан","28536182","МУП \"Печищи\"","1615007700","161501001",null,null,"VS"]
[63,"2642","Республика Татарстан","26354376","МУП \"Сельхозжилсервис\"","1643006561","164301001",null,null,"VS"]
[64,"2642","Республика Татарстан","28983667","МУП \"Теплоэнергосервис\"","1634009125","163401001",null,null,"VS"]
[65,"2642","Республика Татарстан","30796651","МУП \"УК\"","1633607147","163301001",null,null,"VS"]
[66,"2642","Республика Татарстан","28943188","МУП \"Управление ЖКХ Менделеевского муниципального района\"","1627009678","162701001",null,null,"VS"]
[67,"2642","Республика Татарстан","27840693","МУП \"Уют\"","1622006909","162201001","11-03-2012 00:00:00",null,"VS"]
[68,"2642","Республика Татарстан","28449529","Нижнекамская ТЭЦ (ПТК-1) -филиал ОАО \"ТГК-16\"","1655189422","165143001",null,null,"VS"]
[69,"2642","Республика Татарстан","26405741","ОАО \"Алексеевскводоканал\"","1605004556","160501001",null,null,"VS"]
[70,"2642","Республика Татарстан","28492948","ОАО \"Зеленодольский завод имени А.М.Горького\" Санаторий-профилакторий \"Дельфин\"","1648013442","168150001",null,null,"VS"]
[71,"2642","Республика Татарстан","27796151","ОАО \"Ипотечное агентство Республики Татарстан\"","1655071678","165501001",null,null,"VS"]
[72,"2642","Республика Татарстан","27568731","ОАО \"Казанский завод синтетического каучука\"","1659032038","165901001","11-01-2012 00:00:00",null,"VS"]
[73,"2642","Республика Татарстан","26354346","ОАО \"Камско-Устьинские коммунальные сети\"","1622005013","162201001",null,null,"VS"]
[74,"2642","Республика Татарстан","26354329","ОАО \"Киятское МПП ЖКХ\"","1614007507","161401001",null,null,"VS"]
[75,"2642","Республика Татарстан","26354431","ОАО \"Коммунальные сети Черемшанского района\"","1640004157","164001001",null,null,"VS"]
[76,"2642","Республика Татарстан","26405761","ОАО \"Куйбышевско-Затонские коммунальные сети\"","1622005020","162201001",null,null,"VS"]
[77,"2642","Республика Татарстан","26405859","ОАО \"Масловский\"","1634003860","165501001",null,null,"VS"]
[78,"2642","Республика Татарстан","26354323","ОАО \"Новокинерское МПП ЖКХ\"","1609009347","160901001",null,null,"VS"]
[79,"2642","Республика Татарстан","26541828","ОАО \"ТГК-16\"","1655189422","785150001",null,null,"VS"]
[80,"2642","Республика Татарстан","27773250","ОАО \"Управление капитального строительства инженерных сетей и развития энергосберегающих технологий Республики Татарстан\"","1655229717","165501001",null,null,"VS"]
[81,"2642","Республика Татарстан","26354360","ОАО \"Шеморданское МПП ЖКХ Сабинского района\"","1635005684","163501001",null,null,"VS"]
[82,"2642","Республика Татарстан","28507936","ОАО им.Н.Е.Токарликова","1607000853","164401001",null,null,"VS"]
[83,"2642","Республика Татарстан","26405759","ООО \" Водоканал\"","1601005735","160101001","05-05-2007 00:00:00",null,"VS"]
[84,"2642","Республика Татарстан","30345894","ООО \"АКВАСНАБ\"","1633608542","163301001",null,null,"VS"]
[85,"2642","Республика Татарстан","26405995","ООО \"Айзат\"","1644046574","164401001",null,null,"VS"]
[86,"2642","Республика Татарстан","27018980","ООО \"Алькеевские Коммунальные сети\"","1606006531","160601001","10-06-2011 00:00:00",null,"VS"]
[87,"2642","Республика Татарстан","26402600","ООО \"БРИГ\"","1651046871","165101001",null,null,"VS"]
[88,"2642","Республика Татарстан","26405803","ООО \"Бирюлинские коммунальные сети\"","1616018261","161601001",null,null,"VS"]
[89,"2642","Республика Татарстан","26405778","ООО \"Бугульма-Водоканал\"","1645016886","164501001",null,null,"VS"]
[90,"2642","Республика Татарстан","28261165","ООО \"Вода района\"","1649020837","164901001","09-08-2013 00:00:00",null,"VS"]
[91,"2642","Республика Татарстан","26405822","ООО \"ВодоТехноСервис\"","1623010400","162301001",null,null,"VS"]
[92,"2642","Республика Татарстан","30990099","ООО \"Водоканал Осиново\"","1648046600","164801001",null,null,"VS"]
[93,"2642","Республика Татарстан","26405897","ООО \"Водоканал\"","1605005091","160501001",null,null,"VS"]
[94,"2642","Республика Татарстан","26405829","ООО \"Водоканал\"","1649010268","164901001",null,null,"VS"]
[95,"2642","Республика Татарстан","28449361","ООО \"Водоканал\"","1649021125","164901001",null,null,"VS"]
[96,"2642","Республика Татарстан","28018939","ООО \"Водоканал-КП\"","1651067952","165101001","14-12-2012 00:00:00",null,"VS"]
[97,"2642","Республика Татарстан","26405775","ООО \"Водоканал-Сервис\"","1609010800","160901001",null,null,"VS"]
[98,"2642","Республика Татарстан","30837265","ООО \"Водолей\"","1632012517","163201001",null,null,"VS"]
[99,"2642","Республика Татарстан","28902265","ООО \"Газпром теплоэнерго Казань\"","1655317579","165501001","12-01-2015 00:00:00",null,"VS"]
[100,"2642","Республика Татарстан","26863745","ООО \"ГидроСервис\"","1604008847","160401001",null,null,"VS"]
[101,"2642","Республика Татарстан","27855308","ООО \"Дракон\"","1648033583","164801001","17-09-2012 00:00:00",null,"VS"]
[102,"2642","Республика Татарстан","26405922","ООО \"ЖКПСП \"Инфосервис\"","1644037957","164401001",null,null,"VS"]
[103,"2642","Республика Татарстан","26807269","ООО \"ЖКХ - Васильевка\"","1644061124","164401001","02-02-2011 00:00:00",null,"VS"]
[104,"2642","Республика Татарстан","26405999","ООО \"ЖКХ Кульшарипово\"","1644044425","164401001",null,null,"VS"]
[105,"2642","Республика Татарстан","26550595","ООО \"ЖКХ ст. Калейкино\"","1644058160","164401001",null,null,"VS"]
[106,"2642","Республика Татарстан","26405992","ООО \"ЖКХ-Аппак\"","1644040519","164401001",null,null,"VS"]
[107,"2642","Республика Татарстан","26405994","ООО \"ЖКХ-Зверь\"","1644040124","164401001",null,null,"VS"]
[108,"2642","Республика Татарстан","26402598","ООО \"ЖКХ-Миннибаево\"","1644042266","164401001",null,null,"VS"]
[109,"2642","Республика Татарстан","26405918","ООО \"ЖКХ-Новое Надырово\"","1644040808","164401001",null,null,"VS"]
[110,"2642","Республика Татарстан","26406000","ООО \"ЖКХ-Родник\"","1644041209","164401001",null,null,"VS"]
[111,"2642","Республика Татарстан","26405913","ООО \"ЖКХ-Сулеево\"","1644040163","164401001",null,null,"VS"]
[112,"2642","Республика Татарстан","26402632","ООО \"ЖКХ-Суркино\"","1644037121","164401001",null,null,"VS"]
[113,"2642","Республика Татарстан","26405911","ООО \"ЖКХ-Тайсуганово\"","1644041008","164401001",null,null,"VS"]
[114,"2642","Республика Татарстан","26405915","ООО \"ЖКХ-Шешма\"","1644040558","164401001",null,null,"VS"]
[115,"2642","Республика Татарстан","26405773","ООО \"ЖилКомСервис\"","1608007192","160801001",null,null,"VS"]
[116,"2642","Республика Татарстан","26509740","ООО \"Жилбыт\"","1633606697","163301001",null,null,"VS"]
[117,"2642","Республика Татарстан","27746036","ООО \"Жилищно-коммунальные услуги\"","1648028858","164801001","12-06-2012 00:00:00",null,"VS"]
[118,"2642","Республика Татарстан","28135400","ООО \"Жилкомплекс-ТМ\"","1616018504","161601001",null,null,"VS"]
[119,"2642","Республика Татарстан","28975173","ООО \"Заинский Водоканал\"","1647016930","164701001",null,null,"VS"]
[120,"2642","Республика Татарстан","26354358","ООО \"Инженерные сети Кощаковские\"","1633006160","163301001",null,null,"VS"]
[121,"2642","Республика Татарстан","30814015","ООО \"Интеграция\"","1658191691","165801001",null,null,"VS"]
[122,"2642","Республика Татарстан","26354348","ООО \"КАРСАР\"","1624004368","168150001",null,null,"VS"]
[123,"2642","Республика Татарстан","26406312","ООО \"КФХ\" Архангельское\"","1631004111","163101001",null,null,"VS"]
[124,"2642","Республика Татарстан","28508752","ООО \"КЭСП\"","1651037732","165101001",null,null,"VS"]
[125,"2642","Республика Татарстан","30848652","ООО \"Керамика-Синтез\"","1615004548","161501001",null,null,"VS"]
[126,"2642","Республика Татарстан","26354369","ООО \"Коммунальные сети - Бетьки\"","1639035143","163901001",null,null,"VS"]
[127,"2642","Республика Татарстан","26791391","ООО \"Коммунальные сети - Круглое Поле\"","1639044500","163901001",null,null,"VS"]
[128,"2642","Республика Татарстан","26402512","ООО \"Коммунальные сети - Новый\"","1639035062","163901001",null,null,"VS"]
[129,"2642","Республика Татарстан","26354368","ООО \"Коммунальные сети - Татарстан\"","1639035055","163901001",null,null,"VS"]
[130,"2642","Республика Татарстан","26412782","ООО \"Коммунальные сети Дрожжаное\"","1617004014","161701001",null,null,"VS"]
[131,"2642","Республика Татарстан","26405870","ООО \"Коммунсервис\"","1619004838","161901001",null,null,"VS"]
[132,"2642","Республика Татарстан","27830961","ООО \"Куркачинские сети\"","1616022290","161601001","04-06-2012 00:00:00",null,"VS"]
[133,"2642","Республика Татарстан","26405825","ООО \"Лаишевский Коммунальный Сервис\"","1624010851","162401001",null,null,"VS"]
[134,"2642","Республика Татарстан","30346024","ООО \"Лениногорские тепловые сети\"","1649022584","164901001",null,null,"VS"]
[135,"2642","Республика Татарстан","28272949","ООО \"МЁША\"","1619006218","161901001","23-08-2013 00:00:00",null,"VS"]
[136,"2642","Республика Татарстан","28466743","ООО \"МКД Сервис\"","1648037193","164801001",null,null,"VS"]
[137,"2642","Республика Татарстан","26508778","ООО \"Менделеевсказот\"","1627005000","168150001",null,null,"VS"]
[138,"2642","Республика Татарстан","26405806","ООО \"Нижневязовской жилкомсервис\"","1648043158","164801001",null,null,"VS"]
[139,"2642","Республика Татарстан","26542465","ООО \"Нижнекамская ТЭЦ\"","1651057954","165101001",null,null,"VS"]
[140,"2642","Республика Татарстан","28422851","ООО \"Нижнекамский Жилкомсервис\"","1651068882","165101001",null,null,"VS"]
[141,"2642","Республика Татарстан","26354355","ООО \"Новошешминское МПП ЖКХ\"","1631003213","163101001",null,null,"VS"]
[142,"2642","Республика Татарстан","28830173","ООО \"ПСК XXI век\"","1655094562","165501001",null,null,"VS"]
[143,"2642","Республика Татарстан","29648308","ООО \"Плауэн\"","1656070050","165601001",null,null,"VS"]
[144,"2642","Республика Татарстан","26508631","ООО \"Промочистка\"","1632010887","163201001","01-01-2010 00:00:00",null,"VS"]
[145,"2642","Республика Татарстан","26508955","ООО \"РАИС\"","1644050980","164401001",null,null,"VS"]
[146,"2642","Республика Татарстан","28828300","ООО \"РСК\"","1660200738","166001001",null,null,"VS"]
[147,"2642","Республика Татарстан","26405826","ООО \"РСК\" Инженерные Технологии\"","1624010844","162401001",null,null,"VS"]
[148,"2642","Республика Татарстан","30856907","ООО \"РСО \"ЭКО\"","1633006837","163301001",null,null,"VS"]
[149,"2642","Республика Татарстан","30847997","ООО \"Родник\"","1601009169","160101001",null,null,"VS"]
[150,"2642","Республика Татарстан","28821707","ООО \"Родник\"","1614012070","161401001",null,null,"VS"]
[151,"2642","Республика Татарстан","28952930","ООО \"Рыбно-слободский жилищно-коммунальный сервис\"","1634009076","163401001",null,null,"VS"]
[152,"2642","Республика Татарстан","26641541","ООО \"Светводканал\"","1636006352","163601001",null,null,"VS"]
[153,"2642","Республика Татарстан","26354364","ООО \"Спасские коммунальные сети\"","1637005369","163701001",null,null,"VS"]
[154,"2642","Республика Татарстан","26412749","ООО \"Спасский  водоканал\"","1637006098","163701001",null,null,"VS"]
[155,"2642","Республика Татарстан","30847450","ООО \"Спецтехника\"","1632016215","163201001",null,null,"VS"]
[156,"2642","Республика Татарстан","30946055","ООО \"ТИС\"","1646038804","164601001",null,null,"VS"]
[157,"2642","Республика Татарстан","26322549","ООО \"Теплосервис\"","1604005405","160401001",null,null,"VS"]
[158,"2642","Республика Татарстан","26407393","ООО \"Теплосервис\"","1647013601","164701001",null,null,"VS"]
[159,"2642","Республика Татарстан","28266282","ООО \"Теплоснабсервис\"","1655256968","165501001",null,null,"VS"]
[160,"2642","Республика Татарстан","26511105","ООО \"Теплострой\"","1633606560","163301001",null,null,"VS"]
[161,"2642","Республика Татарстан","28267895","ООО \"Терсинские коммунальные сети\"","1601002011","160101001","18-07-2013 00:00:00",null,"VS"]
[162,"2642","Республика Татарстан","28136218","ООО \"ТрастИнвестСтрой\"","1657054660","161901001",null,null,"VS"]
[163,"2642","Республика Татарстан","28823340","ООО \"Тукаевский водоканал\"","1639046811","163901001",null,null,"VS"]
[164,"2642","Республика Татарстан","30855382","ООО \"УК \"Загородный клуб\"","1656069819","165601001",null,null,"VS"]
[165,"2642","Республика Татарстан","28828635","ООО \"УК \"Осиново\"","1648031152","164801001",null,null,"VS"]
[166,"2642","Республика Татарстан","27898303","ООО \"УПТЖ для ППД\"","1644066080","164401001",null,null,"VS"]
[167,"2642","Республика Татарстан","27686388","ООО \"Управление\"","1612005455","161201001",null,null,"VS"]
[168,"2642","Республика Татарстан","28794665","ООО \"Управляющая компания \"Нефтяник\"","1645029349","164501001",null,null,"VS"]
[169,"2642","Республика Татарстан","26405899","ООО \"Управляющая компания \"Ореховка\"","1657075332","165701001",null,null,"VS"]
[170,"2642","Республика Татарстан","26405854","ООО \"Управляющая компания жилищно-коммунального хозяйства\"","1632010870","163201001",null,null,"VS"]
[171,"2642","Республика Татарстан","27829636","ООО \"Уруссу-Водоканал\"","1642005741","164201001",null,null,"VS"]
[172,"2642","Республика Татарстан","26491020","ООО \"Фирма \"Никос  и Мария\"","1655031523","166001001",null,null,"VS"]
[173,"2642","Республика Татарстан","28798446","ООО \"ЦВК\"","1624447095","162401001",null,null,"VS"]
[174,"2642","Республика Татарстан","27761259","ООО \"Центр обслуживания поселений\"","1626013174","162601001","03-05-2012 00:00:00",null,"VS"]
[175,"2642","Республика Татарстан","26405981","ООО \"Центр обслуживания поселений\"","1646020606","164601001",null,null,"VS"]
[176,"2642","Республика Татарстан","26406006","ООО \"Ципьинское МПП ЖКХ\"","1612006787","161201001",null,null,"VS"]
[177,"2642","Республика Татарстан","26322524","ООО \"Челныводоканал\"","1650049407","168150001",null,null,"VS"]
[178,"2642","Республика Татарстан","28857397","ООО \"Челныводоканал\"","1650297657","165001001","01-12-2014 00:00:00",null,"VS"]
[179,"2642","Республика Татарстан","28982561","ООО \"Чистая вода\"","1632008197","163201001",null,null,"VS"]
[180,"2642","Республика Татарстан","27836210","ООО \"Чистопольское сельское жилищно-коммунальное хозяйство\"","1652020019","165201001","03-08-2012 00:00:00",null,"VS"]
[181,"2642","Республика Татарстан","26402599","ООО \"Шанс\"","1644041921","164401001",null,null,"VS"]
[182,"2642","Республика Татарстан","26405734","ООО \"Шереметьевский ЖилСтройСервис\"","1651045420","165101001",null,null,"VS"]
[183,"2642","Республика Татарстан","27684292","ООО \"Экосервис\"","1619005937","161901001","28-04-2012 00:00:00",null,"VS"]
[184,"2642","Республика Татарстан","30798857","ООО \"Энергоресурс\"","1660252694","166001001",null,null,"VS"]
[185,"2642","Республика Татарстан","26383226","ООО «Газпром трансгаз Казань»","1600000036","168150001",null,null,"VS"]
[186,"2642","Республика Татарстан","31166318","ООО «Октябрьские инженерные сети»","1648045740","164801001",null,null,"VS"]
[187,"2642","Республика Татарстан","26354427","ООО ПКФ \"Восток-Энерго\"","1652007515","165201001",null,null,"VS"]
[188,"2642","Республика Татарстан","28141600","ООО ПО \"Коммунсервис-Актаныш\"","1604009537","160401001",null,null,"VS"]
[189,"2642","Республика Татарстан","26407437","ОСПК \"Народное предприятие - Родная Земля\"","1646020155","164601001",null,null,"VS"]
[190,"2642","Республика Татарстан","27664844","ПАО \"Казаньоргсинтез\"","1658008723","997550001",null,null,"VS"]
[191,"2642","Республика Татарстан","26322515","ПАО \"Нижнекамскнефтехим\"","1651000010","997550001",null,null,"VS"]
[192,"2642","Республика Татарстан","28507852","ПАО \"Татнефть\" им.В.Д.Шашина\"","1644003838","164631002",null,null,"VS"]
[193,"2642","Республика Татарстан","28096875","Птицефабрика \"Яратель\" филиал ООО \"Птицеводческий комплекс \"Ак барс\"","1648022038","162443001","21-02-2013 00:00:00",null,"VS"]
[194,"2642","Республика Татарстан","27958444","Раифское СУВУ","1620001863","164801001",null,null,"VS"]
[195,"2642","Республика Татарстан","28968849","ТСЖ \"Апрель\"","1646032739","164601001",null,null,"VS"]
[196,"2642","Республика Татарстан","26405869","ТСЖ \"Нефтебаза\"","1639025113","163901001",null,null,"VS"]
[197,"2642","Республика Татарстан","28262238","ТСЖ \"Новая Тура\"","1648036496","164801001",null,null,"VS"]
[198,"2642","Республика Татарстан","26453514","ТСЖ \"Тихоново-сервис\"","1627006483","162701001",null,null,"VS"]
[199,"2642","Республика Татарстан","26354436","ФГАОУ ВО \"Казанский (Приволжский) федеральный университет\"","1655018018","165401001",null,null,"VS"]
[200,"2642","Республика Татарстан","30903763","ФГБУ \"ЦЖКУ\" МИНОБОРОНЫ РОССИИ","7729314745","770101001",null,null,"VS"]
[201,"2642","Республика Татарстан","26354459","ФКП \"Казанский государственный казенный пороховой завод\"","1656025681","165601001",null,null,"VS"]
[202,"2642","Республика Татарстан","28272815","Филиал \"Спасский\" ОАО \"УКС\"","1655229717","163743001",null,null,"VS"]
[203,"2642","Республика Татарстан","27539502","Филиал ЗАО \"Пивоварня Москва-Эфес\" в г.Казань","7726260234","165902001","28-04-2012 00:00:00",null,"VS"]
[204,"2642","Республика Татарстан","30914574","Филиал ФГБУ \"ЦЖКУ\" МИНОБОРОНЫ РОССИИ (по ЦВО)","7729314745","667043001",null,null,"VS"]
[205,"2642","Республика Татарстан","26467064","Челнинский филиал ООО \"Татнефть-АЗС Центр\"","1644040195","163943001",null,null,"VS"]

{"sheet":"modClassifierValidate","index":36,"n_rows":0,"n_cols":0,"rows_kept":0,"cut":false,"hidden":true,"merged":[]}

{"sheet":"modHyp","index":37,"n_rows":0,"n_cols":0,"rows_kept":0,"cut":false,"hidden":true,"merged":[]}

{"sheet":"modfrmDateChoose","index":38,"n_rows":0,"n_cols":0,"rows_kept":0,"cut":false,"hidden":true,"merged":[]}

{"sheet":"modComm","index":39,"n_rows":0,"n_cols":0,"rows_kept":0,"cut":false,"hidden":true,"merged":[]}

{"sheet":"modThisWorkbook","index":40,"n_rows":0,"n_cols":0,"rows_kept":0,"cut":false,"hidden":true,"merged":[]}

{"sheet":"REESTR_MO","index":41,"n_rows":957,"n_cols":4,"rows_kept":957,"cut":false,"hidden":true,"merged":[]}
["№","МР","МО","МО_ОКТМО"]
[1,"Агрызский муниципальный район","Агрызский муниципальный район","92601000"]
[2,"Агрызский муниципальный район","Азевское","92601405"]
[3,"Агрызский муниципальный район","Бимское","92601410"]
[4,"Агрызский муниципальный район","Город Агрыз","92601101"]
[5,"Агрызский муниципальный район","Девятернинское","92601425"]
[6,"Агрызский муниципальный район","Иж-Бобьинское","92601430"]
[7,"Агрызский муниципальный район","Исенбаевское","92601435"]
[8,"Агрызский муниципальный район","Кадряковское","92601438"]
[9,"Агрызский муниципальный район","Кадыбашское","92601440"]
[10,"Агрызский муниципальный район","Кичкетанское","92601415"]
[11,"Агрызский муниципальный район","Красноборское","92601445"]
[12,"Агрызский муниципальный район","Крындинское","92601449"]
[13,"Агрызский муниципальный район","Кудашевское","92601454"]
[14,"Агрызский муниципальный район","Кулегашское","92601420"]
[15,"Агрызский муниципальный район","Кучуковское","92601458"]
[16,"Агрызский муниципальный район","Новобизякинское","92601463"]
[17,"Агрызский муниципальный район","Салаушское","92601468"]
[18,"Агрызский муниципальный район","Сарсак-Омгинское","92601472"]
[19,"Агрызский муниципальный район","Старосляковское","92601477"]
[20,"Агрызский муниципальный район","Старочекалдинское","92601481"]
[21,"Агрызский муниципальный район","Табарлинское","92601486"]
[22,"Агрызский муниципальный район","Терсинское","92601491"]
[23,"Агрызский муниципальный район","Шаршадинское","92601496"]
[24,"Азнакаевский муниципальный район","Агерзинское","92602404"]
[25,"Азнакаевский муниципальный район","Азнакаевский муниципальный район","92602000"]
[26,"Азнакаевский муниципальный район","Алькеевское","92602408"]
[27,"Азнакаевский муниципальный район","Асеевское","92602412"]
[28,"Азнакаевский муниципальный район","Балтачевское","92602416"]
[29,"Азнакаевский муниципальный район","Бирючевское","92602418"]
[30,"Азнакаевский муниципальный район","Вахитовское","92602420"]
[31,"Азнакаевский муниципальный район","Верхнестярлинское","92602424"]
[32,"Азнакаевский муниципальный район","Город Азнакаево","92602101"]
[33,"Азнакаевский муниципальный район","Ильбяковское","92602427"]
[34,"Азнакаевский муниципальный район","Какре-Елгинское","92602428"]
[35,"Азнакаевский муниципальный район","Карамалинское","92602432"]
[36,"Азнакаевский муниципальный район","Мальбагушское","92602436"]
[37,"Азнакаевский муниципальный район","Масягутовское","92602440"]
[38,"Азнакаевский муниципальный район","Микулинское","92602444"]
[39,"Азнакаевский муниципальный район","Сапеевское","92602448"]
[40,"Азнакаевский муниципальный район","Сарлинское","92602452"]
[41,"Азнакаевский муниципальный район","Сухояшское","92602456"]
[42,"Азнакаевский муниципальный район","Татарско-Шуганское","92602458"]
[43,"Азнакаевский муниципальный район","Тойкинское","92602459"]
[44,"Азнакаевский муниципальный район","Тумутукское","92602460"]
[45,"Азнакаевский муниципальный район","Уразаевское","92602462"]
[46,"Азнакаевский муниципальный район","Урманаевское","92602464"]
[47,"Азнакаевский муниципальный район","Урсаевское","92602468"]
[48,"Азнакаевский муниципальный район","Учаллинское","92602472"]
[49,"Азнакаевский муниципальный район","Чалпинское","92602476"]
[50,"Азнакаевский муниципальный район","Чемодуровское","92602480"]
[51,"Азнакаевский муниципальный район","Чубар-Абдулловское","92602484"]
[52,"Азнакаевский муниципальный район","поселок городского типа Актюбинский","92602157"]
[53,"Аксубаевский муниципальный район","Аксубаевский муниципальный район","92604000"]
[54,"Аксубаевский муниципальный район","Беловское","92604410"]
[55,"Аксубаевский муниципальный район","Емелькинское","92604413"]
[56,"Аксубаевский муниципальный район","Карасинское","92604414"]
[57,"Аксубаевский муниципальный район","Кривоозерское","92604415"]
[58,"Аксубаевский муниципальный район","Мюдовское","92604420"]
[59,"Аксубаевский муниципальный район","Новоаксубаевское","92604425"]
[60,"Аксубаевский муниципальный район","Новоибрайкинское","92604430"]
[61,"Аксубаевский муниципальный район","Новокиреметское","92604435"]
[62,"Аксубаевский муниципальный район","Саврушское","92604445"]
[63,"Аксубаевский муниципальный район","Староибрайкинское","92604450"]
[64,"Аксубаевский муниципальный район","Староильдеряковское","92604455"]
[65,"Аксубаевский муниципальный район","Старокиреметское","92604460"]
[66,"Аксубаевский муниципальный район","Старокиязлинское","92604465"]
[67,"Аксубаевский муниципальный район","Старотатарско-Адамское","92604468"]
[68,"Аксубаевский муниципальный район","Старотимошкинское","92604470"]
[69,"Аксубаевский муниципальный район","Староузеевское","92604475"]
[70,"Аксубаевский муниципальный район","Сунчелеевское","92604480"]
[71,"Аксубаевский муниципальный район","Трудолюбовское","92604485"]
[72,"Аксубаевский муниципальный район","Урмандеевское","92604490"]
[73,"Аксубаевский муниципальный район","Щербенское","92604493"]
[74,"Аксубаевский муниципальный район","поселок городского типа Аксубаево","92604151"]
[75,"Актанышский муниципальный район","Аишевское","92605402"]
[76,"Актанышский муниципальный район","Аккузовское","92605404"]
[77,"Актанышский муниципальный район","Актанышбашское","92605408"]
[78,"Актанышский муниципальный район","Актанышский муниципальный район","92605000"]
[79,"Актанышский муниципальный район","Актанышское","92605409"]
[80,"Актанышский муниципальный район","Атясевское","92605411"]
[81,"Актанышский муниципальный район","Верхнеяхшеевское","92605415"]
[82,"Актанышский муниципальный район","Казкеевское","92605419"]
[83,"Актанышский муниципальный район","Кировское","92605423"]
[84,"Актанышский муниципальный район","Кузякинское","92605427"]
[85,"Актанышский муниципальный район","Масадинское","92605438"]
[86,"Актанышский муниципальный район","Новоалимовское","92605434"]
[87,"Актанышский муниципальный район","Поисевское","92605441"]
[88,"Актанышский муниципальный район","Староаймановское","92605445"]
[89,"Актанышский муниципальный район","Старобайсаровское","92605448"]
[90,"Актанышский муниципальный район","Старобугадинское","92605451"]
[91,"Актанышский муниципальный район","Старокурмашевское","92605454"]
[92,"Актанышский муниципальный район","Старосафаровское","92605457"]
[93,"Актанышский муниципальный район","Такталачукское","92605464"]
[94,"Актанышский муниципальный район","Татарско-Суксинское","92605470"]
[95,"Актанышский муниципальный район","Татарско-Ямалинское","92605473"]
[96,"Актанышский муниципальный район","Тлякеевское","92605477"]
[97,"Актанышский муниципальный район","Тюковское","92605481"]
[98,"Актанышский муниципальный район","Уразаевское","92605430"]
[99,"Актанышский муниципальный район","Усинское","92605432"]
[100,"Актанышский муниципальный район","Чалманаратское","92605485"]
[101,"Актанышский муниципальный район","Чуракаевское","92605493"]
[102,"Алексеевский муниципальный район","Алексеевский муниципальный район","92606000"]
[103,"Алексеевский муниципальный район","Билярское","92606405"]
[104,"Алексеевский муниципальный район","Большеполянское","92606410"]
[105,"Алексеевский муниципальный район","Большетиганское","92606415"]
[106,"Алексеевский муниципальный район","Бутлеровское","92606420"]
[107,"Алексеевский муниципальный район","Войкинское","92606425"]
[108,"Алексеевский муниципальный район","Ерыклинское","92606435"]
[109,"Алексеевский муниципальный район","Куркульское","92606440"]
[110,"Алексеевский муниципальный район","Курналинское","92606442"]
[111,"Алексеевский муниципальный район","Лебединское","92606445"]
[112,"Алексеевский муниципальный район","Лебяжинское","92606450"]
[113,"Алексеевский муниципальный район","Левашевское","92606455"]
[114,"Алексеевский муниципальный район","Майнское","92606460"]
[115,"Алексеевский муниципальный район","Подлесно-Шенталинское","92606470"]
[116,"Алексеевский муниципальный район","Родниковское","92606475"]
[117,"Алексеевский муниципальный район","Ромодановское","92606476"]
[118,"Алексеевский муниципальный район","Сахаровское","92606478"]
[119,"Алексеевский муниципальный район","Среднетиганское","92606480"]
[120,"Алексеевский муниципальный район","Степношенталинское","92606490"]
[121,"Алексеевский муниципальный район","Ялкынское","92606495"]
[122,"Алексеевский муниципальный район","поселок городского типа Алексеевское","92606151"]
[123,"Алькеевский муниципальный район","Алькеевский муниципальный район","92607000"]
[124,"Алькеевский муниципальный район","Аппаковское","92607404"]
[125,"Алькеевский муниципальный район","Базарно-Матакское","92607408"]
[126,"Алькеевский муниципальный район","Борискинское","92607412"]
[127,"Алькеевский муниципальный район","Верхнеколчуринское","92607416"]
[128,"Алькеевский муниципальный район","Каргопольское","92607420"]
[129,"Алькеевский муниципальный район","Кошкинское","92607424"]
[130,"Алькеевский муниципальный район","Нижнеалькеевское","92607428"]
[131,"Алькеевский муниципальный район","Нижнекачеевское","92607432"]
[132,"Алькеевский муниципальный район","Новоургагарское","92607440"]
[133,"Алькеевский муниципальный район","Салманское","92607444"]
[134,"Алькеевский муниципальный район","Староалпаровское","92607448"]
[135,"Алькеевский муниципальный район","Старокамкинское","92607452"]
[136,"Алькеевский муниципальный район","Староматакское","92607456"]
[137,"Алькеевский муниципальный район","Старосалмановское","92607460"]
[138,"Алькеевский муниципальный район","Старохурадинское","92607464"]
[139,"Алькеевский муниципальный район","Старочелнинское","92607468"]
[140,"Алькеевский муниципальный район","Тяжбердинское","92607470"]
[141,"Алькеевский муниципальный район","Чувашско-Бродское","92607472"]
[142,"Алькеевский муниципальный район","Чувашско-Бурнаевское","92607476"]
[143,"Алькеевский муниципальный район","Шибашинское","92607484"]
[144,"Алькеевский муниципальный район","Юхмачинское","92607488"]
[145,"Альметьевский муниципальный район","Абдрахмановское","92608403"]
[146,"Альметьевский муниципальный район","Альметьевский муниципальный район","92608000"]
[147,"Альметьевский муниципальный район","Альметьевское","92608404"]
[148,"Альметьевский муниципальный район","Аппаковское","92608424"]
[149,"Альметьевский муниципальный район","Багряж-Никольское","92608406"]
[150,"Альметьевский муниципальный район","Бишмунчинское","92608409"]
[151,"Альметьевский муниципальный район","Борискинское","92608412"]
[152,"Альметьевский муниципальный район","Бутинское","92608413"]
[153,"Альметьевский муниципальный район","Васильевское","92608416"]
[154,"Альметьевский муниципальный район","Верхнеакташское","92608418"]
[155,"Альметьевский муниципальный район","Верхнемактаминское","92608419"]
[156,"Альметьевский муниципальный район","Город Альметьевск","92608101"]
[157,"Альметьевский муниципальный район","Елховское","92608421"]
[158,"Альметьевский муниципальный район","Ерсубайкинское","92608422"]
[159,"Альметьевский муниципальный район","Калейкинское","92608427"]
[160,"Альметьевский муниципальный район","Кама-Исмагиловское","92608428"]
[161,"Альметьевский муниципальный район","Кичуйское","92608433"]
[162,"Альметьевский муниципальный район","Кичучатовское","92608434"]
[163,"Альметьевский муниципальный район","Клементейкинское","92608436"]
[164,"Альметьевский муниципальный район","Кузайкинское","92608439"]
[165,"Альметьевский муниципальный район","Кульшариповское","92608440"]
[166,"Альметьевский муниципальный район","Лесно-Калейкинское","92608441"]
[167,"Альметьевский муниципальный район","Маметьевское","92608442"]
[168,"Альметьевский муниципальный район","Миннибаевское","92608445"]
[169,"Альметьевский муниципальный район","Нижнеабдулловское","92608447"]
[170,"Альметьевский муниципальный район","Новокашировское","92608448"]
[171,"Альметьевский муниципальный район","Новонадыровское","92608451"]
[172,"Альметьевский муниципальный район","Новоникольское","92608454"]
[173,"Альметьевский муниципальный район","Новотроицкое","92608457"]
[174,"Альметьевский муниципальный район","Русско-Акташское","92608459"]
[175,"Альметьевский муниципальный район","Сиренькинское","92608430"]
[176,"Альметьевский муниципальный район","Старомихайловское","92608460"]
[177,"Альметьевский муниципальный район","Старосуркинское","92608415"]
[178,"Альметьевский муниципальный район","Сулеевское","92608463"]
[179,"Альметьевский муниципальный район","Тайсугановское","92608464"]
[180,"Альметьевский муниципальный район","Ямашинское","92608469"]
[181,"Альметьевский муниципальный район","Ямашское","92608472"]
[182,"Альметьевский муниципальный район","поселок городского типа Нижняя Мактама","92608105"]
[183,"Апастовский муниципальный район","Альмендеровское","92610403"]
[184,"Апастовский муниципальный район","Апастовский муниципальный район","92610000"]
[185,"Апастовский муниципальный район","Бакрчинское","92610410"]
[186,"Апастовский муниципальный район","Бишевское","92610412"]
[187,"Апастовский муниципальный район","Большеболгоярское","92610415"]
[188,"Апастовский муниципальный район","Большекокузское","92610417"]
[189,"Апастовский муниципальный район","Булым-Булыхчинское","92610425"]
[190,"Апастовский муниципальный район","Верхнеаткозинское","92610430"]
[191,"Апастовский муниципальный район","Верхнеиндырчинское","92610433"]
[192,"Апастовский муниципальный район","Деушевское","92610436"]
[193,"Апастовский муниципальный район","Ишеевское","92610439"]
[194,"Апастовский муниципальный район","Каратунское","92610444"]
[195,"Апастовский муниципальный район","Кзыл-Тауское","92610442"]
[196,"Апастовский муниципальный район","Куштовское","92610448"]
[197,"Апастовский муниципальный район","Сатламышевское","92610456"]
[198,"Апастовский муниципальный район","Среднебалтаевское","92610459"]
[199,"Апастовский муниципальный район","Староюмралинское","92610462"]
[200,"Апастовский муниципальный район","Табар-Черкийское","92610453"]
[201,"Апастовский муниципальный район","Тутаевское","92610455"]
[202,"Апастовский муниципальный район","Черемшанское","92610474"]
[203,"Апастовский муниципальный район","Чуру-Барышевское","92610477"]
[204,"Апастовский муниципальный район","Шамбулыхчинское","92610483"]
[205,"Апастовский муниципальный район","поселок городского типа Апастово","92610151"]
[206,"Арский муниципальный район","Апазовское","92612403"]
[207,"Арский муниципальный район","Арский муниципальный район","92612000"]
[208,"Арский муниципальный район","Город Арск","92612151"]
[209,"Арский муниципальный район","Качелинское","92612422"]
[210,"Арский муниципальный район","Наласинское","92612442"]
[211,"Арский муниципальный район","Новокинерское","92612450"]
[212,"Арский муниципальный район","Новокишитское","92612452"]
[213,"Арский муниципальный район","Новокырлайское","92612454"]
[214,"Арский муниципальный район","Сизинское","92612462"]
[215,"Арский муниципальный район","Среднеатынское","92612465"]
[216,"Арский муниципальный район","Среднекорсинское","92612415"]
[217,"Арский муниципальный район","Старокырлайское","92612439"]
[218,"Арский муниципальный район","Старочурилинское","92612474"]
[219,"Арский муниципальный район","Ташкичинское","92612480"]
[220,"Арский муниципальный район","Урнякское","92612406"]
[221,"Арский муниципальный район","Утар-Атынское","92612486"]
[222,"Арский муниципальный район","Шушмабашское","92612496"]
[223,"Арский муниципальный район","Янга-Салское","92612498"]
[224,"Атнинский муниципальный район","Атнинский муниципальный район","92613000"]
[225,"Атнинский муниципальный район","Большеатнинское","92613408"]
[226,"Атнинский муниципальный район","Большеменгерское","92613410"]
[227,"Атнинский муниципальный район","Верхнесердинское","92613415"]
[228,"Атнинский муниципальный район","Коморгузинское","92613425"]
[229,"Атнинский муниципальный район","Кубянское","92613430"]
[230,"Атнинский муниципальный район","Кулле-Киминское","92613434"]
[231,"Атнинский муниципальный район","Кунгерское","92613437"]
[232,"Атнинский муниципальный район","Кшкловское","92613440"]
[233,"Атнинский муниципальный район","Нижнеберескинское","92613445"]
[234,"Атнинский муниципальный район","Нижнекуюкское","92613447"]
[235,"Атнинский муниципальный район","Новошашинское","92613457"]
[236,"Атнинский муниципальный район","Узюмское","92613470"]
[237,"Бавлинский муниципальный район","Александровское","92614404"]
[238,"Бавлинский муниципальный район","Бавлинский муниципальный район","92614000"]
[239,"Бавлинский муниципальный район","Город Бавлы","92614101"]
[240,"Бавлинский муниципальный район","Исергаповское","92614424"]
[241,"Бавлинский муниципальный район","Кзыл-Ярское","92614432"]
[242,"Бавлинский муниципальный район","Крым-Сарайское","92614436"]
[243,"Бавлинский муниципальный район","Новозареченское","92614416"]
[244,"Бавлинский муниципальный район","Покровско-Урустамакское","92614440"]
[245,"Бавлинский муниципальный район","Поповское","92614444"]
[246,"Бавлинский муниципальный район","Потапово-Тумбарлинское","92614448"]
[247,"Бавлинский муниципальный район","Салиховское","92614452"]
[248,"Бавлинский муниципальный район","Татарско-Кандызское","92614460"]
[249,"Бавлинский муниципальный район","Тумбарлинское","92614468"]
[250,"Бавлинский муниципальный район","Удмуртско-Ташлинское","92614472"]
[251,"Бавлинский муниципальный район","Шалтинское","92614480"]
[252,"Балтасинский муниципальный район","Балтасинский муниципальный район","92615000"]
[253,"Балтасинский муниципальный район","Бурбашское","92615407"]
[254,"Балтасинский муниципальный район","Бурнакское","92615408"]
[255,"Балтасинский муниципальный район","Верхнесубашское","92615415"]
[256,"Балтасинский муниципальный район","Карадуванское","92615425"]
[257,"Балтасинский муниципальный район","Кугунурское","92615420"]
[258,"Балтасинский муниципальный район","Малолызинское","92615428"]
[259,"Балтасинский муниципальный район","Норминское","92615430"]
[260,"Балтасинский муниципальный район","Нуринерское","92615435"]
[261,"Балтасинский муниципальный район","Пижмарское","92615440"]
[262,"Балтасинский муниципальный район","Салаусское","92615445"]
[263,"Балтасинский муниципальный район","Смаильское","92615410"]
[264,"Балтасинский муниципальный район","Сосновское","92615450"]
[265,"Балтасинский муниципальный район","Среднекушкетское","92615455"]
[266,"Балтасинский муниципальный район","Ципьинское","92615465"]
[267,"Балтасинский муниципальный район","Шишинерское","92615460"]
[268,"Балтасинский муниципальный район","Шубанское","92615470"]
[269,"Балтасинский муниципальный район","Янгуловское","92615475"]
[270,"Балтасинский муниципальный район","поселок городского типа Балтаси","92615151"]
[271,"Бугульминский муниципальный район","Акбашское","92617405"]
[272,"Бугульминский муниципальный район","Березовское","92617460"]
[273,"Бугульминский муниципальный район","Большефедоровское","92617410"]
[274,"Бугульминский муниципальный район","Бугульминский муниципальный район","92617000"]
[275,"Бугульминский муниципальный район","Восточное","92617412"]
[276,"Бугульминский муниципальный район","Вязовское","92617425"]
[277,"Бугульминский муниципальный район","Город Бугульма","92617101"]
[278,"Бугульминский муниципальный район","Зеленорощинское","92617415"]
[279,"Бугульминский муниципальный район","Ключевское","92617420"]
[280,"Бугульминский муниципальный район","Кудашевское","92617430"]
[281,"Бугульминский муниципальный район","Малобугульминское","92617435"]
[282,"Бугульминский муниципальный район","Наратлинское","92617440"]
[283,"Бугульминский муниципальный район","Новоалександровское","92617445"]
[284,"Бугульминский муниципальный район","Новосумароковское","92617450"]
[285,"Бугульминский муниципальный район","Петровское","92617452"]
[286,"Бугульминский муниципальный район","Подгорненское","92617455"]
[287,"Бугульминский муниципальный район","Спасское","92617465"]
[288,"Бугульминский муниципальный район","Староисаковское","92617470"]
[289,"Бугульминский муниципальный район","Татарско-Дымское","92617475"]
[290,"Бугульминский муниципальный район","поселок городского типа Карабаш","92617155"]
[291,"Буинский муниципальный район","Адав-Тулумбаевское","92618404"]
[292,"Буинский муниципальный район","Аксунское","92618407"]
[293,"Буинский муниципальный район","Альшеевское","92618408"]
[294,"Буинский муниципальный район","Альшиховское","92618411"]
[295,"Буинский муниципальный район","Бик-Утеевское","92618415"]
[296,"Буинский муниципальный район","Большефроловское","92618419"]
[297,"Буинский муниципальный район","Буинский муниципальный район","92618000"]
[298,"Буинский муниципальный район","Бюрганское","92618423"]
[299,"Буинский муниципальный район","Верхнелащинское","92618427"]
[300,"Буинский муниципальный район","Город Буинск","92618101"]
[301,"Буинский муниципальный район","Исаковское","92618431"]
[302,"Буинский муниципальный район","Кайбицкое","92618435"]
[303,"Буинский муниципальный район","Киятское","92618439"]
[304,"Буинский муниципальный район","Кошки-Теняковское","92618438"]
[305,"Буинский муниципальный район","Кошки-Шемякинское","92618440"]
[306,"Буинский муниципальный район","Малобуинковское","92618441"]
[307,"Буинский муниципальный район","Мещеряковское","92618442"]
[308,"Буинский муниципальный район","Мокросавалеевское","92618443"]
[309,"Буинский муниципальный район","Нижненаратбашское","92618447"]
[310,"Буинский муниципальный район","Новотинчалинское","92618451"]
[311,"Буинский муниципальный район","Новочечкабское","92618454"]
[312,"Буинский муниципальный район","Нурлатское","92618455"]
[313,"Буинский муниципальный район","Рунгинское","92618458"]
[314,"Буинский муниципальный район","Сорок-Сайдакское","92618462"]
[315,"Буинский муниципальный район","Старостуденецкое","92618469"]
[316,"Буинский муниципальный район","Старотинчалинское","92618472"]
[317,"Буинский муниципальный район","Тимбаевское","92618476"]
[318,"Буинский муниципальный район","Черки-Гришинское","92618480"]
[319,"Буинский муниципальный район","Черки-Кильдуразское","92618483"]
[320,"Буинский муниципальный район","Чувашско-Кищаковское","92618487"]
[321,"Буинский муниципальный район","Энтуганское","92618491"]
[322,"Буинский муниципальный район","Яшевское","92618495"]
[323,"Верхнеуслонский муниципальный район","Большемеминское","92620403"]
[324,"Верхнеуслонский муниципальный район","Бурнашевское","92620405"]
[325,"Верхнеуслонский муниципальный район","Вахитовское","92620408"]
[326,"Верхнеуслонский муниципальный район","Введенско-Слободское","92620410"]
[327,"Верхнеуслонский муниципальный район","Верхнеуслонский муниципальный район","92620000"]
[328,"Верхнеуслонский муниципальный район","Верхнеуслонское","92620415"]
[329,"Верхнеуслонский муниципальный район","Канашское","92620420"]
[330,"Верхнеуслонский муниципальный район","Кильдеевское","92620425"]
[331,"Верхнеуслонский муниципальный район","Коргузинское","92620435"]
[332,"Верхнеуслонский муниципальный район","Кураловское","92620440"]
[333,"Верхнеуслонский муниципальный район","Майданское","92620445"]
[334,"Верхнеуслонский муниципальный район","Макуловское","92620450"]
[335,"Верхнеуслонский муниципальный район","Набережно-Морквашское","92620460"]
[336,"Верхнеуслонский муниципальный район","Нижнеуслонское","92620465"]
[337,"Верхнеуслонский муниципальный район","Новорусско-Маматкозинское","92620470"]
[338,"Верхнеуслонский муниципальный район","Октябрьское","92620472"]
[339,"Верхнеуслонский муниципальный район","Печищинское","92620473"]
[340,"Верхнеуслонский муниципальный район","Соболевское","92620474"]
[341,"Верхнеуслонский муниципальный район","Шеланговское","92620475"]
[342,"Верхнеуслонский муниципальный район","Ямбулатовское","92620478"]
[343,"Верхнеуслонский муниципальный район","город Иннополис","92620109"]
[344,"Высокогорский муниципальный район","Айбашское","92622403"]
[345,"Высокогорский муниципальный район","Алан-Бексерское","92622406"]
[346,"Высокогорский муниципальный район","Альдермышское","92622409"]
[347,"Высокогорский муниципальный район","Березкинское","92622411"]
[348,"Высокогорский муниципальный район","Бирюлинское","92622412"]
[349,"Высокогорский муниципальный район","Большебитаманское","92622415"]
[350,"Высокогорский муниципальный район","Большековалинское","92622421"]
[351,"Высокогорский муниципальный район","Высокогорский муниципальный район","92622000"]
[352,"Высокогорский муниципальный район","Высокогорское","92622427"]
[353,"Высокогорский муниципальный район","Дачное","92622429"]
[354,"Высокогорский муниципальный район","Дубъязское","92622430"]
[355,"Высокогорский муниципальный район","Иске-Казанское","92622431"]
[356,"Высокогорский муниципальный район","Казакларское","92622434"]
[357,"Высокогорский муниципальный район","Красносельское","92622440"]
[358,"Высокогорский муниципальный район","Куркачинское","92622441"]
[359,"Высокогорский муниципальный район","Мемдельское","92622443"]
[360,"Высокогорский муниципальный район","Мульминское","92622446"]
[361,"Высокогорский муниципальный район","Село-Алатское","92622455"]
[362,"Высокогорский муниципальный район","Семиозерское","92622458"]
[363,"Высокогорский муниципальный район","Суксинское","92622462"]
[364,"Высокогорский муниципальный район","Ташлы-Ковалинское","92622464"]
[365,"Высокогорский муниципальный район","Усадское","92622467"]
[366,"Высокогорский муниципальный район","Чепчуговское","92622473"]
[367,"Высокогорский муниципальный район","Чернышевское","92622474"]
[368,"Высокогорский муниципальный район","Шапшинское","92622479"]
[369,"Высокогорский муниципальный район","Ямашурминское","92622485"]
[370,"Город Казань","Город Казань","92701000"]
[371,"Город Набережные Челны","Город Набережные Челны","92730000"]
[372,"Дрожжановский муниципальный район","Алешкин-Саплыкское","92624405"]
[373,"Дрожжановский муниципальный район","Большеаксинское","92624410"]
[374,"Дрожжановский муниципальный район","Большецильнинское","92624415"]
[375,"Дрожжановский муниципальный район","Городищенское","92624420"]
[376,"Дрожжановский муниципальный район","Дрожжановский муниципальный район","92624000"]
[377,"Дрожжановский муниципальный район","Звездинское","92624425"]
[378,"Дрожжановский муниципальный район","Малоцильнинское","92624430"]
[379,"Дрожжановский муниципальный район","Марсовское","92624435"]
[380,"Дрожжановский муниципальный район","Матакское","92624440"]
[381,"Дрожжановский муниципальный район","Нижнечекурское","92624445"]
[382,"Дрожжановский муниципальный район","Новобурундуковское","92624450"]
[383,"Дрожжановский муниципальный район","Новоильмовское","92624455"]
[384,"Дрожжановский муниципальный район","Новоишлинское","92624460"]
[385,"Дрожжановский муниципальный район","Село-Убейское","92624465"]
[386,"Дрожжановский муниципальный район","Стародрожжановское","92624470"]
[387,"Дрожжановский муниципальный район","Старокакерлинское","92624475"]
[388,"Дрожжановский муниципальный район","Старочукалинское","92624480"]
[389,"Дрожжановский муниципальный район","Старошаймурзинское","92624485"]
[390,"Дрожжановский муниципальный район","Чувашско-Дрожжановское","92624490"]
[391,"Дрожжановский муниципальный район","Шланговское","92624495"]
[392,"Елабужский муниципальный район","Альметьевское","92626401"]
[393,"Елабужский муниципальный район","Бехтеревское","92626404"]
[394,"Елабужский муниципальный район","Большееловское","92626412"]
[395,"Елабужский муниципальный район","Большекачкинское","92626416"]
[396,"Елабужский муниципальный район","Большешурнякское","92626420"]
[397,"Елабужский муниципальный район","Город Елабуга","92626101"]
[398,"Елабужский муниципальный район","Елабужский муниципальный район","92626000"]
[399,"Елабужский муниципальный район","Костенеевское","92626432"]
[400,"Елабужский муниципальный район","Лекаревское","92626436"]
[401,"Елабужский муниципальный район","Мортовское","92626444"]
[402,"Елабужский муниципальный район","Мурзихинское","92626448"]
[403,"Елабужский муниципальный район","Поспеловское","92626456"]
[404,"Елабужский муниципальный район","Старокуклюкское","92626468"]
[405,"Елабужский муниципальный район","Староюрашское","92626472"]
[406,"Елабужский муниципальный район","Танайское","92626476"]
[407,"Елабужский муниципальный район","Татарско-Дюм-Дюмское","92626478"]
[408,"Елабужский муниципальный район","Яковлевское","92626492"]
[409,"Заинский муниципальный район","Аксаринское","92627484"]
[410,"Заинский муниципальный район","Александро-Слободское","92627405"]
[411,"Заинский муниципальный район","Багряжское","92627415"]
[412,"Заинский муниципальный район","Бегишевское","92627420"]
[413,"Заинский муниципальный район","Бухарайское","92627425"]
[414,"Заинский муниципальный район","Верхненалимское","92627430"]
[415,"Заинский муниципальный район","Верхнепинячинское","92627432"]
[416,"Заинский муниципальный район","Верхнешипкинское","92627434"]
[417,"Заинский муниципальный район","Город Заинск","92627101"]
[418,"Заинский муниципальный район","Гулькинское","92627435"]
[419,"Заинский муниципальный район","Дуртмунчинское","92627444"]
[420,"Заинский муниципальный район","Заинский муниципальный район","92627000"]
[421,"Заинский муниципальный район","Кадыровское","92627410"]
[422,"Заинский муниципальный район","Нижнебишевское","92627454"]
[423,"Заинский муниципальный район","Новоспасское","92627459"]
[424,"Заинский муниципальный район","Поповское","92627464"]
[425,"Заинский муниципальный район","Поручиковское","92627466"]
[426,"Заинский муниципальный район","Савалеевское","92627468"]
[427,"Заинский муниципальный район","Сармаш-Башское","92627476"]
[428,"Заинский муниципальный район","Светлоозерское","92627480"]
[429,"Заинский муниципальный район","Старо-Мавринское","92627481"]
[430,"Заинский муниципальный район","Тюгеевское","92627488"]
[431,"Заинский муниципальный район","Урсаевское","92627489"]
[432,"Заинский муниципальный район","Чубуклинское","92627490"]
[433,"Зеленодольский муниципальный район","Айшинское","92628404"]
[434,"Зеленодольский муниципальный район","Акзигитовское","92628408"]
[435,"Зеленодольский муниципальный район","Бишнинское","92628416"]
[436,"Зеленодольский муниципальный район","Большеачасырское","92628412"]
[437,"Зеленодольский муниципальный район","Большеключинское","92628420"]
[438,"Зеленодольский муниципальный район","Большекургузинское","92628424"]
[439,"Зеленодольский муниципальный район","Большеширданское","92628432"]
[440,"Зеленодольский муниципальный район","Большеякинское","92628488"]
[441,"Зеленодольский муниципальный район","Город Зеленодольск","92628101"]
[442,"Зеленодольский муниципальный район","Зеленодольский муниципальный район","92628000"]
[443,"Зеленодольский муниципальный район","Кугеевское","92628442"]
[444,"Зеленодольский муниципальный район","Кугушевское","92628444"]
[445,"Зеленодольский муниципальный район","Мамадыш-Акиловское","92628448"]
[446,"Зеленодольский муниципальный район","Молвинское","92628454"]
[447,"Зеленодольский муниципальный район","Нижнеураспугинское","92628456"]
[448,"Зеленодольский муниципальный район","Новопольское","92628460"]
[449,"Зеленодольский муниципальный район","Нурлатское","92628464"]
[450,"Зеленодольский муниципальный район","Октябрьское","92628468"]
[451,"Зеленодольский муниципальный район","Осиновское","92628472"]
[452,"Зеленодольский муниципальный район","Раифское","92628474"]
[453,"Зеленодольский муниципальный район","Русско-Азелеевское","92628476"]
[454,"Зеленодольский муниципальный район","Свияжское","92628477"]
[455,"Зеленодольский муниципальный район","Утяшкинское","92628436"]
[456,"Зеленодольский муниципальный район","поселок городского типа Васильево","92628155"]
[457,"Зеленодольский муниципальный район","поселок городского типа Нижние Вязовые","92628162"]
[458,"Кайбицкий муниципальный район","Багаевское","92629405"]
[459,"Кайбицкий муниципальный район","Большекайбицкое","92629408"]
[460,"Кайбицкий муниципальный район","Большеподберезинское","92629409"]
[461,"Кайбицкий муниципальный район","Большерусаковское","92629410"]
[462,"Кайбицкий муниципальный район","Бурундуковское","92629412"]
[463,"Кайбицкий муниципальный район","Кайбицкий муниципальный район","92629000"]
[464,"Кайбицкий муниципальный район","Кулангинское","92629423"]
[465,"Кайбицкий муниципальный район","Кушманское","92629426"]
[466,"Кайбицкий муниципальный район","Маломеминское","92629428"]
[467,"Кайбицкий муниципальный район","Молькеевское","92629430"]
[468,"Кайбицкий муниципальный район","Муралинское","92629432"]
[469,"Кайбицкий муниципальный район","Надеждинское","92629435"]
[470,"Кайбицкий муниципальный район","Старотябердинское","92629445"]
[471,"Кайбицкий муниципальный район","Ульянковское","92629447"]
[472,"Кайбицкий муниципальный район","Федоровское","92629450"]
[473,"Кайбицкий муниципальный район","Хозесановское","92629455"]
[474,"Кайбицкий муниципальный район","Чутеевское","92629460"]
[475,"Кайбицкий муниципальный район","Эбалаковское","92629465"]
[476,"Камско-Устьинский муниципальный район","Балтачевское","92630403"]
[477,"Камско-Устьинский муниципальный район","Большебуртасское","92630405"]
[478,"Камско-Устьинский муниципальный район","Большекармалинское","92630410"]
[479,"Камско-Устьинский муниципальный район","Большекляринское","92630415"]
[480,"Камско-Устьинский муниципальный район","Большесалтыковское","92630420"]
[481,"Камско-Устьинский муниципальный район","Варваринское","92630425"]
[482,"Камско-Устьинский муниципальный район","Камско-Устьинский муниципальный район","92630000"]
[483,"Камско-Устьинский муниципальный район","Кирельское","92630430"]
[484,"Камско-Устьинский муниципальный район","Клянчеевское","92630435"]
[485,"Камско-Устьинский муниципальный район","Красновидовское","92630440"]
[486,"Камско-Устьинский муниципальный район","Малосалтыковское","92630445"]
[487,"Камско-Устьинский муниципальный район","Осинниковское","92630447"]
[488,"Камско-Устьинский муниципальный район","Старобарышевское","92630450"]
[489,"Камско-Устьинский муниципальный район","Староказеевское","92630455"]
[490,"Камско-Устьинский муниципальный район","Сюкеевское","92630460"]
[491,"Камско-Устьинский муниципальный район","Теньковское","92630465"]
[492,"Камско-Устьинский муниципальный район","Уразлинское","92630470"]
[493,"Камско-Устьинский муниципальный район","Янгасалское","92630475"]
[494,"Камско-Устьинский муниципальный район","поселок городского типа Камское Устье","92630151"]
[495,"Камско-Устьинский муниципальный район","поселок городского типа Куйбышевский Затон","92630157"]
[496,"Камско-Устьинский муниципальный район","поселок городского типа Тенишево","92630165"]
[497,"Кукморский муниципальный район","Байлянгарское","92633404"]
[498,"Кукморский муниципальный район","Березнякское","92633408"]
[499,"Кукморский муниципальный район","Большекукморское","92633412"]
[500,"Кукморский муниципальный район","Большесардекское","92633416"]
[501,"Кукморский муниципальный район","Важашурское","92633420"]
[502,"Кукморский муниципальный район","Каенсарское","92633423"]
[503,"Кукморский муниципальный район","Каркаусское","92633424"]
[504,"Кукморский муниципальный район","Кошкинское","92633428"]
[505,"Кукморский муниципальный район","Кукморский муниципальный район","92633000"]
[506,"Кукморский муниципальный район","Лельвижское","92633429"]
[507,"Кукморский муниципальный район","Лубянское","92633434"]
[508,"Кукморский муниципальный район","Мамаширское","92633430"]
[509,"Кукморский муниципальный район","Манзарасское","92633432"]
[510,"Кукморский муниципальный район","Нижнеискубашское","92633436"]
[511,"Кукморский муниципальный район","Нижнерусское","92633440"]
[512,"Кукморский муниципальный район","Ныртинское","92633444"]
[513,"Кукморский муниципальный район","Нырьинское","92633448"]
[514,"Кукморский муниципальный район","Олуязское","92633452"]
[515,"Кукморский муниципальный район","Ошторма-Юмьинское","92633456"]
[516,"Кукморский муниципальный район","Починок-Кучуковское","92633460"]
[517,"Кукморский муниципальный район","Псякское","92633464"]
[518,"Кукморский муниципальный район","Сардекбашское","92633468"]
[519,"Кукморский муниципальный район","Село-Чуринское","92633472"]
[520,"Кукморский муниципальный район","Среднекуморское","92633476"]
[521,"Кукморский муниципальный район","Туембашское","92633477"]
[522,"Кукморский муниципальный район","Уркушское","92633478"]
[523,"Кукморский муниципальный район","Чарлинское","92633480"]
[524,"Кукморский муниципальный район","Ядыгерьское","92633484"]
[525,"Кукморский муниципальный район","Яныльское","92633488"]
[526,"Кукморский муниципальный район","Ятмас-Дусаевское","92633490"]
[527,"Кукморский муниципальный район","город Кукмор","92633101"]
[528,"Лаишевский муниципальный район","Александровское","92634404"]
[529,"Лаишевский муниципальный район","Атабаевское","92634408"]
[530,"Лаишевский муниципальный район","Большекабанское","92634412"]
[531,"Лаишевский муниципальный район","Габишевское","92634414"]
[532,"Лаишевский муниципальный район","Город Лаишево","92634101"]
[533,"Лаишевский муниципальный район","Державинское","92634415"]
[534,"Лаишевский муниципальный район","Егорьевское","92634416"]
[535,"Лаишевский муниципальный район","Кирбинское","92634428"]
[536,"Лаишевский муниципальный район","Куюковское","92634432"]
[537,"Лаишевский муниципальный район","Лаишевский муниципальный район","92634000"]
[538,"Лаишевский муниципальный район","Макаровское","92634436"]
[539,"Лаишевский муниципальный район","Малоелгинское","92634440"]
[540,"Лаишевский муниципальный район","Матюшинское","92634442"]
[541,"Лаишевский муниципальный район","Нармонское","92634444"]
[542,"Лаишевский муниципальный район","Никольское","92634448"]
[543,"Лаишевский муниципальный район","Орловское","92634484"]
[544,"Лаишевский муниципальный район","Пелевское","92634452"]
[545,"Лаишевский муниципальный район","Песчано-Ковалинское","92634456"]
[546,"Лаишевский муниципальный район","Рождественское","92634460"]
[547,"Лаишевский муниципальный район","Сокуровское","92634468"]
[548,"Лаишевский муниципальный район","Среднедевятовское","92634472"]
[549,"Лаишевский муниципальный район","Столбищенское","92634480"]
[550,"Лаишевский муниципальный район","Татарско-Сараловское","92634486"]
[551,"Лаишевский муниципальный район","Татарско-Янтыкское","92634488"]
[552,"Лаишевский муниципальный район","Чирповское","92634492"]
[553,"Лениногорский муниципальный район","Глазовское","92636405"]
[554,"Лениногорский муниципальный район","Город Лениногорск","92636101"]
[555,"Лениногорский муниципальный район","Зай-Каратайское","92636410"]
[556,"Лениногорский муниципальный район","Зеленорощинское","92636412"]
[557,"Лениногорский муниципальный район","Ивановское","92636415"]
[558,"Лениногорский муниципальный район","Каркалинское","92636418"]
[559,"Лениногорский муниципальный район","Кармалкинское","92636419"]
[560,"Лениногорский муниципальный район","Керлигачское","92636420"]
[561,"Лениногорский муниципальный район","Куакбашское","92636425"]
[562,"Лениногорский муниципальный район","Лениногорский муниципальный район","92636000"]
[563,"Лениногорский муниципальный район","Мичуринское","92636435"]
[564,"Лениногорский муниципальный район","Мукмин-Каратайское","92636437"]
[565,"Лениногорский муниципальный район","Нижнечершилинское","92636440"]
[566,"Лениногорский муниципальный район","Новоиштерякское","92636445"]
[567,"Лениногорский муниципальный район","Новочершилинское","92636447"]
[568,"Лениногорский муниципальный район","Письмянское","92636450"]
[569,"Лениногорский муниципальный район","Сарабикуловское","92636455"]
[570,"Лениногорский муниципальный район","Староиштерякское","92636460"]
[571,"Лениногорский муниципальный район","Старокувакское","92636465"]
[572,"Лениногорский муниципальный район","Старошугуровское","92636470"]
[573,"Лениногорский муниципальный район","Сугушлинское","92636475"]
[574,"Лениногорский муниципальный район","Тимяшевское","92636480"]
[575,"Лениногорский муниципальный район","Туктарово-Урдалинское","92636485"]
[576,"Лениногорский муниципальный район","Урмышлинское","92636490"]
[577,"Лениногорский муниципальный район","Федотовское","92636495"]
[578,"Лениногорский муниципальный район","Шугуровское","92636497"]
[579,"Мамадышский муниципальный район","Албайское","92638403"]
[580,"Мамадышский муниципальный район","Верхнеошминское","92638406"]
[581,"Мамадышский муниципальный район","Город Мамадыш","92638101"]
[582,"Мамадышский муниципальный район","Дюсьметьевское","92638415"]
[583,"Мамадышский муниципальный район","Ишкеевское","92638418"]
[584,"Мамадышский муниципальный район","Катмышское","92638421"]
[585,"Мамадышский муниципальный район","Кемеш-Кульское","92638424"]
[586,"Мамадышский муниципальный район","Кляушское","92638427"]
[587,"Мамадышский муниципальный район","Красногорское","92638430"]
[588,"Мамадышский муниципальный район","Куюк-Ерыксинское","92638436"]
[589,"Мамадышский муниципальный район","Малокирменское","92638442"]
[590,"Мамадышский муниципальный район","Мамадышский муниципальный район","92638000"]
[591,"Мамадышский муниципальный район","Нижнеошминское","92638448"]
[592,"Мамадышский муниципальный район","Нижнесуньское","92638451"]
[593,"Мамадышский муниципальный район","Нижнетаканышское","92638454"]
[594,"Мамадышский муниципальный район","Нижнешандерское","92638457"]
[595,"Мамадышский муниципальный район","Никифоровское","92638460"]
[596,"Мамадышский муниципальный район","Олуязское","92638463"]
[597,"Мамадышский муниципальный район","Омарское","92638466"]
[598,"Мамадышский муниципальный район","Отарское","92638469"]
[599,"Мамадышский муниципальный район","Сокольское","92638475"]
[600,"Мамадышский муниципальный район","Среднекирменское","92638478"]
[601,"Мамадышский муниципальный район","Суньское","92638480"]
[602,"Мамадышский муниципальный район","Тавельское","92638481"]
[603,"Мамадышский муниципальный район","Уразбахтинское","92638484"]
[604,"Мамадышский муниципальный район","Урманчеевское","92638487"]
[605,"Мамадышский муниципальный район","Усалинское","92638490"]
[606,"Мамадышский муниципальный район","Шадчинское","92638493"]
[607,"Мамадышский муниципальный район","Шемяковское","92638495"]
[608,"Мамадышский муниципальный район","Якинское","92638498"]
[609,"Менделеевский муниципальный район","Абалачевское","92639403"]
[610,"Менделеевский муниципальный район","Бизякинское","92639410"]
[611,"Менделеевский муниципальный район","Брюшлинское","92639415"]
[612,"Менделеевский муниципальный район","Город Менделеевск","92639101"]
[613,"Менделеевский муниципальный район","Енабердинское","92639418"]
[614,"Менделеевский муниципальный район","Ижевское","92639423"]
[615,"Менделеевский муниципальный район","Камаевское","92639428"]
[616,"Менделеевский муниципальный район","Менделеевский муниципальный район","92639000"]
[617,"Менделеевский муниципальный район","Монашевское","92639440"]
[618,"Менделеевский муниципальный район","Мунайкинское","92639441"]
[619,"Менделеевский муниципальный район","Псеевское","92639443"]
[620,"Менделеевский муниципальный район","Старогришкинское","92639464"]
[621,"Менделеевский муниципальный район","Татарско-Челнинское","92639480"]
[622,"Менделеевский муниципальный район","Тихоновское","92639483"]
[623,"Менделеевский муниципальный район","Тойгузинское","92639485"]
[624,"Менделеевский муниципальный район","Тураевское","92639488"]
[625,"Мензелинский муниципальный район","Атряклинское","92640404"]
[626,"Мензелинский муниципальный район","Аюское","92640408"]
[627,"Мензелинский муниципальный район","Бикбуловское","92640412"]
[628,"Мензелинский муниципальный район","Верхнетакерменское","92640416"]
[629,"Мензелинский муниципальный район","Город Мензелинск","92640101"]
[630,"Мензелинский муниципальный район","Иркеняшское","92640428"]
[631,"Мензелинский муниципальный район","Кадряковское","92640432"]
[632,"Мензелинский муниципальный район","Коноваловское","92640440"]
[633,"Мензелинский муниципальный район","Кузембетьевское","92640444"]
[634,"Мензелинский муниципальный район","Мензелинский муниципальный район","92640000"]
[635,"Мензелинский муниципальный район","Наратлы-Кичуское","92640455"]
[636,"Мензелинский муниципальный район","Николаевское","92640457"]
[637,"Мензелинский муниципальный район","Новомазинское","92640459"]
[638,"Мензелинский муниципальный район","Новомелькенское","92640461"]
[639,"Мензелинский муниципальный район","Подгорно-Байларское","92640463"]
[640,"Мензелинский муниципальный район","Старомазинское","92640478"]
[641,"Мензелинский муниципальный район","Староматвеевское","92640481"]
[642,"Мензелинский муниципальный район","Урусовское","92640492"]
[643,"Мензелинский муниципальный район","Юртовское","92640494"]
[644,"Мензелинский муниципальный район","Юшадинское","92640496"]
[645,"Мензелинский муниципальный район","им Воровского","92640424"]
[646,"Муслюмовский муниципальный район","Амикеевское","92642405"]
[647,"Муслюмовский муниципальный район","Баланнинское","92642410"]
[648,"Муслюмовский муниципальный район","Баюковское","92642415"]
[649,"Муслюмовский муниципальный район","Большечекмакское","92642416"]
[650,"Муслюмовский муниципальный район","Варяш-Башское","92642417"]
[651,"Муслюмовский муниципальный район","Исансуповское","92642420"]
[652,"Муслюмовский муниципальный район","Кряш-Шуранское","92642425"]
[653,"Муслюмовский муниципальный район","Мелля-Тамакское","92642430"]
[654,"Муслюмовский муниципальный район","Митряевское","92642435"]
[655,"Муслюмовский муниципальный район","Михайловское","92642440"]
[656,"Муслюмовский муниципальный район","Муслюмовский муниципальный район","92642000"]
[657,"Муслюмовский муниципальный район","Муслюмовское","92642443"]
[658,"Муслюмовский муниципальный район","Нижнетабынское","92642450"]
[659,"Муслюмовский муниципальный район","Новоусинское","92642455"]
[660,"Муслюмовский муниципальный район","Октябрьское","92642460"]
[661,"Муслюмовский муниципальный район","Семяковское","92642465"]
[662,"Муслюмовский муниципальный район","Старокарамалинское","92642470"]
[663,"Муслюмовский муниципальный район","Тойгильдинское","92642475"]
[664,"Муслюмовский муниципальный район","Уразметьевское","92642480"]
[665,"Муслюмовский муниципальный район","Шуганское","92642485"]
[666,"Нижнекамский муниципальный район","Афанасовское","92644405"]
[667,"Нижнекамский муниципальный район","Город Нижнекамск","92644101"]
[668,"Нижнекамский муниципальный район","Елантовское","92644407"]
[669,"Нижнекамский муниципальный район","Каенлинское","92644410"]
[670,"Нижнекамский муниципальный район","Кармалинское","92644412"]
[671,"Нижнекамский муниципальный район","Краснокадкинское","92644420"]
[672,"Нижнекамский муниципальный район","Красноключинское","92644415"]
[673,"Нижнекамский муниципальный район","Майскогорское","92644423"]
[674,"Нижнекамский муниципальный район","Макаровское","92644425"]
[675,"Нижнекамский муниципальный район","Нижнекамский муниципальный район","92644000"]
[676,"Нижнекамский муниципальный район","Нижнеуратьминское","92644430"]
[677,"Нижнекамский муниципальный район","Простинское","92644433"]
[678,"Нижнекамский муниципальный район","Сосновское","92644434"]
[679,"Нижнекамский муниципальный район","Старошешминское","92644435"]
[680,"Нижнекамский муниципальный район","Сухаревское","92644440"]
[681,"Нижнекамский муниципальный район","Шереметьевское","92644445"]
[682,"Нижнекамский муниципальный район","Шингальчинское","92644450"]
[683,"Нижнекамский муниципальный район","поселок городского типа Камские Поляны","92644156"]
[684,"Новошешминский муниципальный район","Азеевское","92645401"]
[685,"Новошешминский муниципальный район","Акбуринское","92645440"]
[686,"Новошешминский муниципальный район","Архангельское","92645402"]
[687,"Новошешминский муниципальный район","Буревестниковское","92645405"]
[688,"Новошешминский муниципальный район","Екатерининское","92645412"]
[689,"Новошешминский муниципальный район","Зиреклинское","92645419"]
[690,"Новошешминский муниципальный район","Краснооктябрьское","92645425"]
[691,"Новошешминский муниципальный район","Ленинское","92645428"]
[692,"Новошешминский муниципальный район","Новошешминский муниципальный район","92645000"]
[693,"Новошешминский муниципальный район","Новошешминское","92645432"]
[694,"Новошешминский муниципальный район","Петропавловское","92645436"]
[695,"Новошешминский муниципальный район","Тубылгытауское","92645438"]
[696,"Новошешминский муниципальный район","Утяшкинское","92645444"]
[697,"Новошешминский муниципальный район","Чебоксарское","92645447"]
[698,"Новошешминский муниципальный район","Черемуховское","92645450"]
[699,"Новошешминский муниципальный район","Шахмайкинское","92645453"]
[700,"Нурлатский муниципальный район","Амзинское","92646408"]
[701,"Нурлатский муниципальный район","Андреевское","92646412"]
[702,"Нурлатский муниципальный район","Ахметовское","92646448"]
[703,"Нурлатский муниципальный район","Бикуловское","92646449"]
[704,"Нурлатский муниципальный район","Биляр-Озерское","92646416"]
[705,"Нурлатский муниципальный район","Богдашкинское","92646420"]
[706,"Нурлатский муниципальный район","Бурметьевское","92646424"]
[707,"Нурлатский муниципальный район","Гайтанкинское","92646427"]
[708,"Нурлатский муниципальный район","Город Нурлат","92646101"]
[709,"Нурлатский муниципальный район","Егоркинское","92646428"]
[710,"Нурлатский муниципальный район","Елаурское","92646432"]
[711,"Нурлатский муниципальный район","Зареченское","92646436"]
[712,"Нурлатский муниципальный район","Кичкальнинское","92646442"]
[713,"Нурлатский муниципальный район","Кульбаево-Марасинское","92646444"]
[714,"Нурлатский муниципальный район","Мамыковское","92646452"]
[715,"Нурлатский муниципальный район","Новоиглайкинское","92646460"]
[716,"Нурлатский муниципальный район","Новотумбинское","92646462"]
[717,"Нурлатский муниципальный район","Нурлатский муниципальный район","92646000"]
[718,"Нурлатский муниципальный район","Селенгушское","92646464"]
[719,"Нурлатский муниципальный район","Среднекамышлинское","92646468"]
[720,"Нурлатский муниципальный район","Староальметьевское","92646472"]
[721,"Нурлатский муниципальный район","Старочелнинское","92646476"]
[722,"Нурлатский муниципальный район","Степноозерское","92646480"]
[723,"Нурлатский муниципальный район","Тимерлекское","92646484"]
[724,"Нурлатский муниципальный район","Тюрнясевское","92646486"]
[725,"Нурлатский муниципальный район","Фомкинское","92646488"]
[726,"Нурлатский муниципальный район","Чулпановское","92646490"]
[727,"Нурлатский муниципальный район","Якушкинское","92646492"]
[728,"Пестречинский муниципальный район","Белкинское","92648405"]
[729,"Пестречинский муниципальный район","Богородское","92648410"]
[730,"Пестречинский муниципальный район","Екатериновское","92648415"]
[731,"Пестречинский муниципальный район","Кибячинское","92648425"]
[732,"Пестречинский муниципальный район","Кобяковское","92648427"]
[733,"Пестречинский муниципальный район","Ковалинское","92648428"]
[734,"Пестречинский муниципальный район","Конское","92648430"]
[735,"Пестречинский муниципальный район","Кощаковское","92648435"]
[736,"Пестречинский муниципальный район","Кряш-Сердинское","92648440"]
[737,"Пестречинский муниципальный район","Кулаевское","92648445"]
[738,"Пестречинский муниципальный район","Ленино-Кокушкинское","92648450"]
[739,"Пестречинский муниципальный район","Надеждинское","92648452"]
[740,"Пестречинский муниципальный район","Отар-Дубровское","92648453"]
[741,"Пестречинский муниципальный район","Пановское","92648454"]
[742,"Пестречинский муниципальный район","Пестречинский муниципальный район","92648000"]
[743,"Пестречинский муниципальный район","Пестречинское","92648455"]
[744,"Пестречинский муниципальный район","Пимерское","92648457"]
[745,"Пестречинский муниципальный район","Татарско-Ходяшевское","92648465"]
[746,"Пестречинский муниципальный район","Читинское","92648467"]
[747,"Пестречинский муниципальный район","Шалинское","92648470"]
[748,"Пестречинский муниципальный район","Шигалеевское","92648475"]
[749,"Пестречинский муниципальный район","Янцеварское","92648480"]
[750,"Рыбно-Слободский муниципальный район","Анатышское","92650404"]
[751,"Рыбно-Слободский муниципальный район","Балыклы-Чукаевское","92650408"]
[752,"Рыбно-Слободский муниципальный район","Бетьковское","92650412"]
[753,"Рыбно-Слободский муниципальный район","Биектауское","92650416"]
[754,"Рыбно-Слободский муниципальный район","Большеелгинское","92650420"]
[755,"Рыбно-Слободский муниципальный район","Большекульгинское","92650424"]
[756,"Рыбно-Слободский муниципальный район","Большемашлякское","92650428"]
[757,"Рыбно-Слободский муниципальный район","Большеошнякское","92650432"]
[758,"Рыбно-Слободский муниципальный район","Большесалтанское","92650436"]
[759,"Рыбно-Слободский муниципальный район","Козяково-Челнинское","92650440"]
[760,"Рыбно-Слободский муниципальный район","Корноуховское","92650444"]
[761,"Рыбно-Слободский муниципальный район","Кугарчинское","92650448"]
[762,"Рыбно-Слободский муниципальный район","Кукеевское","92650450"]
[763,"Рыбно-Слободский муниципальный район","Кутлу-Букашское","92650452"]
[764,"Рыбно-Слободский муниципальный район","Масловское","92650454"]
[765,"Рыбно-Слободский муниципальный район","Нижнетимерлекское","92650456"]
[766,"Рыбно-Слободский муниципальный район","Новоарышское","92650460"]
[767,"Рыбно-Слободский муниципальный район","Полянское","92650462"]
[768,"Рыбно-Слободский муниципальный район","Русско-Ошнякское","92650464"]
[769,"Рыбно-Слободский муниципальный район","Рыбно-Слободский муниципальный район","92650000"]
[770,"Рыбно-Слободский муниципальный район","Троицко-Урайское","92650472"]
[771,"Рыбно-Слободский муниципальный район","Урахчинское","92650476"]
[772,"Рыбно-Слободский муниципальный район","Шеморбашское","92650480"]
[773,"Рыбно-Слободский муниципальный район","Шетнево-Тулушское","92650484"]
[774,"Рыбно-Слободский муниципальный район","Шумбутское","92650488"]
[775,"Рыбно-Слободский муниципальный район","Шумковское","92650492"]
[776,"Рыбно-Слободский муниципальный район","Юлсубинское","92650496"]
[777,"Рыбно-Слободский муниципальный район","поселок городского типа Рыбная Слобода","92650151"]
[778,"Сабинский муниципальный район","Арташское","92652404"]
[779,"Сабинский муниципальный район","Большекибячинское","92652409"]
[780,"Сабинский муниципальный район","Большеныртинское","92652417"]
[781,"Сабинский муниципальный район","Большешинарское","92652423"]
[782,"Сабинский муниципальный район","Верхнесиметское","92652431"]
[783,"Сабинский муниципальный район","Евлаштауское","92652432"]
[784,"Сабинский муниципальный район","Изминское","92652434"]
[785,"Сабинский муниципальный район","Иштуганское","92652436"]
[786,"Сабинский муниципальный район","Кильдебякское","92652442"]
[787,"Сабинский муниципальный район","Корсабашское","92652430"]
[788,"Сабинский муниципальный район","Мешинское","92652452"]
[789,"Сабинский муниципальный район","Мичанское","92652454"]
[790,"Сабинский муниципальный район","Нижнешитцинское","92652450"]
[791,"Сабинский муниципальный район","Сабинский муниципальный район","92652000"]
[792,"Сабинский муниципальный район","Сатышевское","92652462"]
[793,"Сабинский муниципальный район","Староикшурминское","92652473"]
[794,"Сабинский муниципальный район","Тимершикское","92652481"]
[795,"Сабинский муниципальный район","Шеморданское","92652494"]
[796,"Сабинский муниципальный район","Шикшинское","92652495"]
[797,"Сабинский муниципальный район","Юлбатское","92652498"]
[798,"Сабинский муниципальный район","поселок городского типа Богатые Сабы","92652151"]
[799,"Сармановский муниципальный район","Азалаковское","92653404"]
[800,"Сармановский муниципальный район","Александровское","92653408"]
[801,"Сармановский муниципальный район","Альметьевское","92653409"]
[802,"Сармановский муниципальный район","Большенуркеевское","92653412"]
[803,"Сармановский муниципальный район","Верхне-Чершилинское","92653415"]
[804,"Сармановский муниципальный район","Иляксазское","92653420"]
[805,"Сармановский муниципальный район","Кавзияковское","92653424"]
[806,"Сармановский муниципальный район","Карашай-Сакловское","92653428"]
[807,"Сармановский муниципальный район","Лешев-Тамакское","92653432"]
[808,"Сармановский муниципальный район","Лякинское","92653436"]
[809,"Сармановский муниципальный район","Муртыш-Тамакское","92653440"]
[810,"Сармановский муниципальный район","Новоимянское","92653444"]
[811,"Сармановский муниципальный район","Петровско-Заводское","92653448"]
[812,"Сармановский муниципальный район","Рангазарское","92653452"]
[813,"Сармановский муниципальный район","Саклов-Башское","92653456"]
[814,"Сармановский муниципальный район","Сармановский муниципальный район","92653000"]
[815,"Сармановский муниципальный район","Сармановское","92653460"]
[816,"Сармановский муниципальный район","Старо-Имянское","92653470"]
[817,"Сармановский муниципальный район","Старокаширское","92653468"]
[818,"Сармановский муниципальный район","Старомензелябашское","92653472"]
[819,"Сармановский муниципальный район","Чукмарлинское","92653480"]
[820,"Сармановский муниципальный район","Шарлиареминское","92653482"]
[821,"Сармановский муниципальный район","Янурусовское","92653484"]
[822,"Сармановский муниципальный район","поселок городского типа Джалиль","92653155"]
[823,"Спасский муниципальный район","Аграмаковское","92632405"]
[824,"Спасский муниципальный район","Антоновское","92632410"]
[825,"Спасский муниципальный район","Бураковское","92632415"]
[826,"Спасский муниципальный район","Город Болгар","92632101"]
[827,"Спасский муниципальный район","Измерское","92632420"]
[828,"Спасский муниципальный район","Иске-Рязапское","92632425"]
[829,"Спасский муниципальный район","Кимовское","92632430"]
[830,"Спасский муниципальный район","Краснослободское","92632435"]
[831,"Спасский муниципальный район","Кузнечихинское","92632440"]
[832,"Спасский муниципальный район","Кураловское","92632445"]
[833,"Спасский муниципальный район","Никольское","92632450"]
[834,"Спасский муниципальный район","Полянское","92632460"]
[835,"Спасский муниципальный район","Приволжское","92632462"]
[836,"Спасский муниципальный район","Спасский муниципальный район","92632000"]
[837,"Спасский муниципальный район","Среднеюрткульское","92632465"]
[838,"Спасский муниципальный район","Трехозерское","92632470"]
[839,"Спасский муниципальный район","Чэчэклинское","92632455"]
[840,"Спасский муниципальный район","Ямбухтинское","92632475"]
[841,"Тетюшский муниципальный район","Алабердинское","92655403"]
[842,"Тетюшский муниципальный район","Байрашевское","92655408"]
[843,"Тетюшский муниципальный район","Бакрчинское","92655412"]
[844,"Тетюшский муниципальный район","Беденьгинское","92655416"]
[845,"Тетюшский муниципальный район","Бессоновское","92655417"]
[846,"Тетюшский муниципальный район","Большеатрясское","92655420"]
[847,"Тетюшский муниципальный район","Большетарханское","92655424"]
[848,"Тетюшский муниципальный район","Большетурминское","92655428"]
[849,"Тетюшский муниципальный район","Большешемякинское","92655432"]
[850,"Тетюшский муниципальный район","Город Тетюши","92655101"]
[851,"Тетюшский муниципальный район","Жуковское","92655436"]
[852,"Тетюшский муниципальный район","Кильдюшевское","92655438"]
[853,"Тетюшский муниципальный район","Киртелинское","92655440"]
[854,"Тетюшский муниципальный район","Кляшевское","92655444"]
[855,"Тетюшский муниципальный район","Кошки-Новотимбаевское","92655448"]
[856,"Тетюшский муниципальный район","Льяшевское","92655456"]
[857,"Тетюшский муниципальный район","Монастырское","92655464"]
[858,"Тетюшский муниципальный район","Нармонское","92655468"]
[859,"Тетюшский муниципальный район","Сюндюковское","92655476"]
[860,"Тетюшский муниципальный район","Тетюшский муниципальный район","92655000"]
[861,"Тетюшский муниципальный район","Урюмское","92655480"]
[862,"Тетюшский муниципальный район","Федоровское","92655484"]
[863,"Тукаевский муниципальный район","Азьмушкинское","92657405"]
[864,"Тукаевский муниципальный район","Бетькинское","92657410"]
[865,"Тукаевский муниципальный район","Биклянское","92657415"]
[866,"Тукаевский муниципальный район","Биюрганское","92657426"]
[867,"Тукаевский муниципальный район","Бурдинское","92657425"]
[868,"Тукаевский муниципальный район","Иштеряковское","92657428"]
[869,"Тукаевский муниципальный район","Калмашское","92657430"]
[870,"Тукаевский муниципальный район","Калмиинское","92657431"]
[871,"Тукаевский муниципальный район","Князевское","92657435"]
[872,"Тукаевский муниципальный район","Комсомольское","92657437"]
[873,"Тукаевский муниципальный район","Круглопольское","92657433"]
[874,"Тукаевский муниципальный район","Кузкеевское","92657438"]
[875,"Тукаевский муниципальный район","Малошильнинское","92657439"]
[876,"Тукаевский муниципальный район","Мелекесское","92657440"]
[877,"Тукаевский муниципальный район","Мусабай-Заводское","92657445"]
[878,"Тукаевский муниципальный район","Нижнесуыксинское","92657450"]
[879,"Тукаевский муниципальный район","Новотроицкое","92657455"]
[880,"Тукаевский муниципальный район","Семекеевское","92657465"]
[881,"Тукаевский муниципальный район","Староабдуловское","92657469"]
[882,"Тукаевский муниципальный район","Стародрюшское","92657471"]
[883,"Тукаевский муниципальный район","Тлянче-Тамакское","92657474"]
[884,"Тукаевский муниципальный район","Тукаевский муниципальный район","92657000"]
[885,"Тукаевский муниципальный район","Шильнебашское","92657483"]
[886,"Тукаевский муниципальный район","Яна-Булякское","92657492"]
[887,"Тюлячинский муниципальный район","Абдинское","92656403"]
[888,"Тюлячинский муниципальный район","Айдаровское","92656404"]
[889,"Тюлячинский муниципальный район","Аланское","92656405"]
[890,"Тюлячинский муниципальный район","Баландышское","92656410"]
[891,"Тюлячинский муниципальный район","Большеметескинское","92656413"]
[892,"Тюлячинский муниципальный район","Большемешское","92656415"]
[893,"Тюлячинский муниципальный район","Большенырсинское","92656418"]
[894,"Тюлячинский муниципальный район","Верхнекибякозинское","92656425"]
[895,"Тюлячинский муниципальный район","Малокибякозинское","92656435"]
[896,"Тюлячинский муниципальный район","Старозюринское","92656440"]
[897,"Тюлячинский муниципальный район","Тюлячинский муниципальный район","92656000"]
[898,"Тюлячинский муниципальный район","Тюлячинское","92656445"]
[899,"Тюлячинский муниципальный район","Узякское","92656450"]
[900,"Тюлячинский муниципальный район","Шадкинское","92656455"]
[901,"Черемшанский муниципальный район","Беркет-Ключевское","92658405"]
[902,"Черемшанский муниципальный район","Верхнекаменское","92658410"]
[903,"Черемшанский муниципальный район","Ивашкинское","92658415"]
[904,"Черемшанский муниципальный район","Карамышевское","92658420"]
[905,"Черемшанский муниципальный район","Кутеминское","92658422"]
[906,"Черемшанский муниципальный район","Лашманское","92658430"]
[907,"Черемшанский муниципальный район","Мордовско-Афонькинское","92658435"]
[908,"Черемшанский муниципальный район","Нижнекаменское","92658438"]
[909,"Черемшанский муниципальный район","Нижнекармалкинское","92658440"]
[910,"Черемшанский муниципальный район","Новоильмовское","92658445"]
[911,"Черемшанский муниципальный район","Новокадеевское","92658450"]
[912,"Черемшанский муниципальный район","Старокадеевское","92658455"]
[913,"Черемшанский муниципальный район","Старокутушское","92658425"]
[914,"Черемшанский муниципальный район","Староутямышское","92658460"]
[915,"Черемшанский муниципальный район","Туйметкинское","92658462"]
[916,"Черемшанский муниципальный район","Ульяновское","92658465"]
[917,"Черемшанский муниципальный район","Черемшанский муниципальный район","92658000"]
[918,"Черемшанский муниципальный район","Черемшанское","92658470"]
[919,"Черемшанский муниципальный район","Шешминское","92658475"]
[920,"Чистопольский муниципальный район","Адельшинское","92659403"]
[921,"Чистопольский муниципальный район","Большетолкишское","92659409"]
[922,"Чистопольский муниципальный район","Булдырское","92659412"]
[923,"Чистопольский муниципальный район","Верхнекондратинское","92659414"]
[924,"Чистопольский муниципальный район","Город Чистополь","92659101"]
[925,"Чистопольский муниципальный район","Данауровское","92659418"]
[926,"Чистопольский муниципальный район","Исляйкинское","92659423"]
[927,"Чистопольский муниципальный район","Каргалинское","92659430"]
[928,"Чистопольский муниципальный район","Кубасское","92659438"]
[929,"Чистопольский муниципальный район","Кутлушкинское","92659441"]
[930,"Чистопольский муниципальный район","Малотолкишское","92659447"]
[931,"Чистопольский муниципальный район","Муслюмкинское","92659450"]
[932,"Чистопольский муниципальный район","Нарат-Елгинское","92659453"]
[933,"Чистопольский муниципальный район","Нижнекондратинское","92659455"]
[934,"Чистопольский муниципальный район","Совхозно-Галактионовское","92659462"]
[935,"Чистопольский муниципальный район","Староромашкинское","92659468"]
[936,"Чистопольский муниципальный район","Татарско-Баганинское","92659471"]
[937,"Чистопольский муниципальный район","Татарско-Елтанское","92659474"]
[938,"Чистопольский муниципальный район","Татарско-Сарсазское","92659475"]
[939,"Чистопольский муниципальный район","Татарско-Толкишское","92659477"]
[940,"Чистопольский муниципальный район","Четырчинское","92659486"]
[941,"Чистопольский муниципальный район","Чистопольский муниципальный район","92659000"]
[942,"Чистопольский муниципальный район","Чистопольско-Высельское","92659492"]
[943,"Чистопольский муниципальный район","Чистопольское","92659489"]
[944,"Чистопольский муниципальный район","Чувашско-Елтанское","92659495"]
[945,"Ютазинский муниципальный район","Абсалямовское","92654401"]
[946,"Ютазинский муниципальный район","Акбашское","92654402"]
[947,"Ютазинский муниципальный район","Байряки-Тамакское","92654408"]
[948,"Ютазинский муниципальный район","Байрякинское","92654405"]
[949,"Ютазинский муниципальный район","Дым-Тамакское","92654412"]
[950,"Ютазинский муниципальный район","Каракашлинское","92654420"]
[951,"Ютазинский муниципальный район","Старокаразерикское","92654435"]
[952,"Ютазинский муниципальный район","Ташкичуйское","92654440"]
[953,"Ютазинский муниципальный район","Уруссинское","92654445"]
[954,"Ютазинский муниципальный район","Ютазинский муниципальный район","92654000"]
[955,"Ютазинский муниципальный район","Ютазинское","92654455"]
[956,"Ютазинский муниципальный район","поселок городского типа Уруссу","92654151"]

{"sheet":"REESTR_MO_FILTER","index":42,"n_rows":0,"n_cols":0,"rows_kept":0,"cut":false,"hidden":true,"merged":[]}

{"sheet":"modfrmReestrMR","index":43,"n_rows":0,"n_cols":0,"rows_kept":0,"cut":false,"hidden":true,"merged":[]}

{"sheet":"modServiceModule","index":44,"n_rows":0,"n_cols":0,"rows_kept":0,"cut":false,"hidden":true,"merged":[]}

{"sheet":"modfrmCheckUpdates","index":45,"n_rows":0,"n_cols":0,"rows_kept":0,"cut":false,"hidden":true,"merged":[]}

{"sheet":"REESTR_DS","index":46,"n_rows":3,"n_cols":2,"rows_kept":3,"cut":false,"hidden":true,"merged":[]}
[]
[]
[null,"Чистопольский муниципальный район, Город Чистополь (92659101);"]

{"sheet":"REESTR_CHS","index":47,"n_rows":0,"n_cols":0,"rows_kept":0,"cut":false,"hidden":true,"merged":[]}

{"sheet":"REESTR_LINK","index":48,"n_rows":3,"n_cols":3,"rows_kept":3,"cut":false,"hidden":true,"merged":[]}
["ID","LINK_NAME","REGION"]
[4189678,"https://portal.eias.ru/Portal/DownloadPage.aspx?type=12&guid=????????-????-????-????-????????????","ALL"]
[4190415,"https://eias.fstrf.ru/disclo/get_file?p_guid=????????-????-????-????-????????????","ALL"]